BODY,BODY NAME,9CCC - Level 9 Cost Centre Code,9CCN - Level 9 Cost Centre Name,9AC - Level 9 Account Code,9AN - Level 9 Account Name,Transaction Reference Code,Entry Date,Posting Date,Customer/Supplier Code,Customer/Supplier Name,Their Ref, Amount(Transaction Line Amount) 
http://statistics.data.gov.uk/id/local-authority/12UE,Huntingdonshire District Council,MU69,Customer Service Centres,100,Hired Staff,217672,03/10/2017,03/10/2017,CR424715,ADVANTAGE RESOURCING,90446614, 258.75 
http://statistics.data.gov.uk/id/local-authority/12UE,Huntingdonshire District Council,MU69,Customer Service Centres,100,Hired Staff,218894,13/10/2017,13/10/2017,CR422369,MEYER SCOTT RECRUITMENT LIMITED,35742, 270.40 
http://statistics.data.gov.uk/id/local-authority/12UE,Huntingdonshire District Council,HB85,Benefits Management,100,Hired Staff,219480,25/10/2017,25/10/2017,CR415693,MORGAN HUNT PUBLIC UK LTD,1007828, 286.65 
http://statistics.data.gov.uk/id/local-authority/12UE,Huntingdonshire District Council,MU69,Customer Service Centres,100,Hired Staff,219307,24/10/2017,24/10/2017,CR422369,MEYER SCOTT RECRUITMENT LIMITED,35775, 290.18 
http://statistics.data.gov.uk/id/local-authority/12UE,Huntingdonshire District Council,MU69,Customer Service Centres,100,Hired Staff,219728,27/10/2017,27/10/2017,CR422369,MEYER SCOTT RECRUITMENT LIMITED,35805, 290.18 
http://statistics.data.gov.uk/id/local-authority/12UE,Huntingdonshire District Council,ER01,Domestic Waste Collection,100,Hired Staff,218555,12/10/2017,12/10/2017,CR416827,STAFFLINE GROUP,IN0629197, 296.78 
http://statistics.data.gov.uk/id/local-authority/12UE,Huntingdonshire District Council,LQ21,Burgess Hall,100,Hired Staff,219324,24/10/2017,26/10/2017,CR422363,SHOW & EVENT SECURITY,23252, 318.75 
http://statistics.data.gov.uk/id/local-authority/12UE,Huntingdonshire District Council,MU69,Customer Service Centres,100,Hired Staff,218159,03/10/2017,03/10/2017,CR424715,ADVANTAGE RESOURCING,90457204, 338.81 
http://statistics.data.gov.uk/id/local-authority/12UE,Huntingdonshire District Council,CH45,Transformation - Customers,100,Hired Staff,218238,04/10/2017,04/10/2017,CR423917,HAYS,1007939383, 357.50 
http://statistics.data.gov.uk/id/local-authority/12UE,Huntingdonshire District Council,LQ21,Burgess Hall,100,Hired Staff,219809,31/10/2017,01/11/2017,CR422363,SHOW & EVENT SECURITY,23312, 367.00 
http://statistics.data.gov.uk/id/local-authority/12UE,Huntingdonshire District Council,ER01,Domestic Waste Collection,100,Hired Staff,218551,12/10/2017,12/10/2017,CR416827,STAFFLINE GROUP,IN0630525, 395.70 
http://statistics.data.gov.uk/id/local-authority/12UE,Huntingdonshire District Council,MD20,Imd Shared Service,100,Hired Staff,218619,11/10/2017,12/10/2017,CR424731,L A INTERNATIONAL COMPUTER CONSULTANTS LTD,LA457546, 444.38 
http://statistics.data.gov.uk/id/local-authority/12UE,Huntingdonshire District Council,MU76,Finance,100,Hired Staff,218243,04/10/2017,04/10/2017,CR424012,FIRST RECRUITMENT GROUP LTD,288451, 465.99 
http://statistics.data.gov.uk/id/local-authority/12UE,Huntingdonshire District Council,MU76,Finance,100,Hired Staff,218241,04/10/2017,04/10/2017,CR424012,FIRST RECRUITMENT GROUP LTD,287783, 469.16 
http://statistics.data.gov.uk/id/local-authority/12UE,Huntingdonshire District Council,MU76,Finance,100,Hired Staff,218602,10/10/2017,10/10/2017,CR424012,FIRST RECRUITMENT GROUP LTD,289130, 469.16 
http://statistics.data.gov.uk/id/local-authority/12UE,Huntingdonshire District Council,MU76,Finance,100,Hired Staff,219005,17/10/2017,17/10/2017,CR424012,FIRST RECRUITMENT GROUP LTD,289922, 469.16 
http://statistics.data.gov.uk/id/local-authority/12UE,Huntingdonshire District Council,MU76,Finance,100,Hired Staff,219540,25/10/2017,25/10/2017,CR424012,FIRST RECRUITMENT GROUP LTD,290587, 469.16 
http://statistics.data.gov.uk/id/local-authority/12UE,Huntingdonshire District Council,MU76,Finance,100,Hired Staff,218244,04/10/2017,04/10/2017,CR424012,FIRST RECRUITMENT GROUP LTD,288450, 471.52 
http://statistics.data.gov.uk/id/local-authority/12UE,Huntingdonshire District Council,MD20,Imd Shared Service,100,Hired Staff,218171,04/10/2017,05/10/2017,CR482676,ADVANTAGE,126154, 480.00 
http://statistics.data.gov.uk/id/local-authority/12UE,Huntingdonshire District Council,MU69,Customer Service Centres,100,Hired Staff,218510,09/10/2017,09/10/2017,CR422369,MEYER SCOTT RECRUITMENT LIMITED,35711, 494.63 
http://statistics.data.gov.uk/id/local-authority/12UE,Huntingdonshire District Council,MD20,Imd Shared Service,100,Hired Staff,219403,24/10/2017,26/10/2017,CR454029,PREMIER IT RECRUITMENT LTD,R022751, 500.00 
http://statistics.data.gov.uk/id/local-authority/12UE,Huntingdonshire District Council,MD20,Imd Shared Service,100,Hired Staff,218621,11/10/2017,12/10/2017,CR424704,STR GROUP,S302764, 528.64 
http://statistics.data.gov.uk/id/local-authority/12UE,Huntingdonshire District Council,MD20,Imd Shared Service,100,Hired Staff,219392,24/10/2017,26/10/2017,CR482676,ADVANTAGE,126238, 580.00 
http://statistics.data.gov.uk/id/local-authority/12UE,Huntingdonshire District Council,QE90,Property Development And Mgt,100,Hired Staff,218293,04/10/2017,04/10/2017,CR455208,CFL ESTATE SERVICES,HDC074, 588.00 
http://statistics.data.gov.uk/id/local-authority/12UE,Huntingdonshire District Council,MD20,Imd Shared Service,100,Hired Staff,218172,04/10/2017,05/10/2017,CR482676,ADVANTAGE,126010, 600.00 
http://statistics.data.gov.uk/id/local-authority/12UE,Huntingdonshire District Council,MD20,Imd Shared Service,100,Hired Staff,218613,11/10/2017,12/10/2017,CR482676,ADVANTAGE,12688, 600.00 
http://statistics.data.gov.uk/id/local-authority/12UE,Huntingdonshire District Council,MD20,Imd Shared Service,100,Hired Staff,219389,24/10/2017,26/10/2017,CR482676,ADVANTAGE,126320, 600.00 
http://statistics.data.gov.uk/id/local-authority/12UE,Huntingdonshire District Council,MU76,Finance,100,Hired Staff,219004,17/10/2017,17/10/2017,CR424012,FIRST RECRUITMENT GROUP LTD,289921, 618.87 
http://statistics.data.gov.uk/id/local-authority/12UE,Huntingdonshire District Council,MD20,Imd Shared Service,100,Hired Staff,218175,04/10/2017,05/10/2017,CR424704,STR GROUP,S302192, 641.94 
http://statistics.data.gov.uk/id/local-authority/12UE,Huntingdonshire District Council,MU76,Finance,100,Hired Staff,219539,25/10/2017,25/10/2017,CR424012,FIRST RECRUITMENT GROUP LTD,290586, 660.97 
http://statistics.data.gov.uk/id/local-authority/12UE,Huntingdonshire District Council,MU76,Finance,100,Hired Staff,218240,04/10/2017,04/10/2017,CR424012,FIRST RECRUITMENT GROUP LTD,287782, 682.02 
http://statistics.data.gov.uk/id/local-authority/12UE,Huntingdonshire District Council,MD20,Imd Shared Service,100,Hired Staff,219386,24/10/2017,26/10/2017,CR424731,L A INTERNATIONAL COMPUTER CONSULTANTS LTD,LA457794, 740.63 
http://statistics.data.gov.uk/id/local-authority/12UE,Huntingdonshire District Council,MD20,Imd Shared Service,100,Hired Staff,218618,11/10/2017,12/10/2017,CR424731,L A INTERNATIONAL COMPUTER CONSULTANTS LTD,LA457547, 750.00 
http://statistics.data.gov.uk/id/local-authority/12UE,Huntingdonshire District Council,MD20,Imd Shared Service,100,Hired Staff,219384,24/10/2017,26/10/2017,CR424731,L A INTERNATIONAL COMPUTER CONSULTANTS LTD,LA459694, 750.00 
http://statistics.data.gov.uk/id/local-authority/12UE,Huntingdonshire District Council,MD20,Imd Shared Service,100,Hired Staff,219387,24/10/2017,26/10/2017,CR424731,L A INTERNATIONAL COMPUTER CONSULTANTS LTD,LA457795, 750.00 
http://statistics.data.gov.uk/id/local-authority/12UE,Huntingdonshire District Council,QE90,Property Development And Mgt,100,Hired Staff,218603,10/10/2017,10/10/2017,CR423917,HAYS,1007871128, 750.00 
http://statistics.data.gov.uk/id/local-authority/12UE,Huntingdonshire District Council,MD20,Imd Shared Service,100,Hired Staff,218168,04/10/2017,05/10/2017,CR482676,ADVANTAGE,126130, 825.00 
http://statistics.data.gov.uk/id/local-authority/12UE,Huntingdonshire District Council,MD20,Imd Shared Service,100,Hired Staff,218614,11/10/2017,12/10/2017,CR482676,ADVANTAGE,126215, 825.00 
http://statistics.data.gov.uk/id/local-authority/12UE,Huntingdonshire District Council,MD20,Imd Shared Service,100,Hired Staff,219388,24/10/2017,26/10/2017,CR482676,ADVANTAGE,126303, 825.00 
http://statistics.data.gov.uk/id/local-authority/12UE,Huntingdonshire District Council,MD20,Imd Shared Service,100,Hired Staff,219393,24/10/2017,26/10/2017,CR482676,ADVANTAGE,126234, 825.00 
http://statistics.data.gov.uk/id/local-authority/12UE,Huntingdonshire District Council,MU76,Finance,100,Hired Staff,219336,23/10/2017,23/10/2017,CR423917,HAYS,1007985196, 859.41 
http://statistics.data.gov.uk/id/local-authority/12UE,Huntingdonshire District Council,LQ21,Burgess Hall,100,Hired Staff,218586,11/10/2017,12/10/2017,CR422363,SHOW & EVENT SECURITY,23217, 948.00 
http://statistics.data.gov.uk/id/local-authority/12UE,Huntingdonshire District Council,HB85,Benefits Management,100,Hired Staff,218879,12/10/2017,12/10/2017,CR415693,MORGAN HUNT PUBLIC UK LTD,1005084, 965.70 
http://statistics.data.gov.uk/id/local-authority/12UE,Huntingdonshire District Council,MU76,Finance,100,Hired Staff,219338,23/10/2017,23/10/2017,CR423917,HAYS,1007985194," 1,062.45 "
http://statistics.data.gov.uk/id/local-authority/12UE,Huntingdonshire District Council,MU76,Finance,100,Hired Staff,219337,23/10/2017,23/10/2017,CR423917,HAYS,1007985195," 1,070.01 "
http://statistics.data.gov.uk/id/local-authority/12UE,Huntingdonshire District Council,MU76,Finance,100,Hired Staff,219335,23/10/2017,23/10/2017,CR423917,HAYS,1007985197," 1,079.46 "
http://statistics.data.gov.uk/id/local-authority/12UE,Huntingdonshire District Council,QE90,Property Development And Mgt,100,Hired Staff,218604,10/10/2017,10/10/2017,CR423917,HAYS,1007888982," 1,125.00 "
http://statistics.data.gov.uk/id/local-authority/12UE,Huntingdonshire District Council,QE90,Property Development And Mgt,100,Hired Staff,218605,10/10/2017,10/10/2017,CR423917,HAYS,1007918689," 1,125.00 "
http://statistics.data.gov.uk/id/local-authority/12UE,Huntingdonshire District Council,QE90,Property Development And Mgt,100,Hired Staff,218606,10/10/2017,10/10/2017,CR423917,HAYS,1007926898," 1,125.00 "
http://statistics.data.gov.uk/id/local-authority/12UE,Huntingdonshire District Council,QE90,Property Development And Mgt,100,Hired Staff,219334,23/10/2017,23/10/2017,CR423917,HAYS,1007991781," 1,125.00 "
http://statistics.data.gov.uk/id/local-authority/12UE,Huntingdonshire District Council,HB85,Benefits Management,100,Hired Staff,218298,04/10/2017,04/10/2017,CR415693,MORGAN HUNT PUBLIC UK LTD,1003708," 1,125.85 "
http://statistics.data.gov.uk/id/local-authority/12UE,Huntingdonshire District Council,MD20,Imd Shared Service,100,Hired Staff,219400,24/10/2017,26/10/2017,CR454029,PREMIER IT RECRUITMENT LTD,R023523," 1,480.00 "
http://statistics.data.gov.uk/id/local-authority/12UE,Huntingdonshire District Council,MD20,Imd Shared Service,100,Hired Staff,218173,04/10/2017,05/10/2017,CR424731,L A INTERNATIONAL COMPUTER CONSULTANTS LTD,LA455644," 1,490.00 "
http://statistics.data.gov.uk/id/local-authority/12UE,Huntingdonshire District Council,QE90,Property Development And Mgt,100,Hired Staff,218239,04/10/2017,04/10/2017,CR424684,PRIME PEOPLE,76135," 1,500.00 "
http://statistics.data.gov.uk/id/local-authority/12UE,Huntingdonshire District Council,QE90,Property Development And Mgt,100,Hired Staff,218247,04/10/2017,04/10/2017,CR424684,PRIME PEOPLE,76250," 1,500.00 "
http://statistics.data.gov.uk/id/local-authority/12UE,Huntingdonshire District Council,QE90,Property Development And Mgt,100,Hired Staff,219003,17/10/2017,17/10/2017,CR424684,PRIME PEOPLE,76381," 1,500.00 "
http://statistics.data.gov.uk/id/local-authority/12UE,Huntingdonshire District Council,QE90,Property Development And Mgt,100,Hired Staff,219339,23/10/2017,23/10/2017,CR424684,PRIME PEOPLE,SI-00001024," 1,500.00 "
http://statistics.data.gov.uk/id/local-authority/12UE,Huntingdonshire District Council,ER01,Domestic Waste Collection,100,Hired Staff,218557,12/10/2017,12/10/2017,CR416827,STAFFLINE GROUP,IN0630546," 1,520.07 "
http://statistics.data.gov.uk/id/local-authority/12UE,Huntingdonshire District Council,CH45,Transformation - Customers,100,Hired Staff,219566,26/10/2017,26/10/2017,CR423917,HAYS,1008014113," 1,608.75 "
http://statistics.data.gov.uk/id/local-authority/12UE,Huntingdonshire District Council,MD20,Imd Shared Service,100,Hired Staff,218174,04/10/2017,05/10/2017,CR424731,L A INTERNATIONAL COMPUTER CONSULTANTS LTD,LA455643," 1,704.50 "
http://statistics.data.gov.uk/id/local-authority/12UE,Huntingdonshire District Council,MD20,Imd Shared Service,100,Hired Staff,218620,11/10/2017,12/10/2017,CR424731,L A INTERNATIONAL COMPUTER CONSULTANTS LTD,LA456945," 1,704.50 "
http://statistics.data.gov.uk/id/local-authority/12UE,Huntingdonshire District Council,MU76,Finance,100,Hired Staff,219333,23/10/2017,23/10/2017,CR423917,HAYS,1007989719," 1,843.90 "
http://statistics.data.gov.uk/id/local-authority/12UE,Huntingdonshire District Council,MD20,Imd Shared Service,100,Hired Staff,218162,04/10/2017,05/10/2017,CR454029,PREMIER IT RECRUITMENT LTD,R023345," 1,850.00 "
http://statistics.data.gov.uk/id/local-authority/12UE,Huntingdonshire District Council,MD20,Imd Shared Service,100,Hired Staff,219397,24/10/2017,26/10/2017,CR454029,PREMIER IT RECRUITMENT LTD,R023578," 1,850.00 "
http://statistics.data.gov.uk/id/local-authority/12UE,Huntingdonshire District Council,MD20,Imd Shared Service,100,Hired Staff,219401,24/10/2017,26/10/2017,CR454029,PREMIER IT RECRUITMENT LTD,R022752," 1,850.00 "
http://statistics.data.gov.uk/id/local-authority/12UE,Huntingdonshire District Council,MD20,Imd Shared Service,100,Hired Staff,219404,24/10/2017,26/10/2017,CR454029,PREMIER IT RECRUITMENT LTD,R023050," 1,850.00 "
http://statistics.data.gov.uk/id/local-authority/12UE,Huntingdonshire District Council,ER01,Domestic Waste Collection,100,Hired Staff,218554,12/10/2017,12/10/2017,CR416827,STAFFLINE GROUP,IN0629375," 1,965.86 "
http://statistics.data.gov.uk/id/local-authority/12UE,Huntingdonshire District Council,MD20,Imd Shared Service,100,Hired Staff,218615,11/10/2017,12/10/2017,CR482676,ADVANTAGE,126177," 2,100.00 "
http://statistics.data.gov.uk/id/local-authority/12UE,Huntingdonshire District Council,MD20,Imd Shared Service,100,Hired Staff,218617,11/10/2017,12/10/2017,CR454029,PREMIER IT RECRUITMENT LTD,R023396," 2,140.00 "
http://statistics.data.gov.uk/id/local-authority/12UE,Huntingdonshire District Council,CH45,Transformation - Customers,100,Hired Staff,219308,20/10/2017,20/10/2017,CR423917,HAYS,1007951640," 2,145.00 "
http://statistics.data.gov.uk/id/local-authority/12UE,Huntingdonshire District Council,QE90,Property Development And Mgt,100,Hired Staff,218295,04/10/2017,04/10/2017,CR455208,CFL ESTATE SERVICES,HDC073," 2,256.00 "
http://statistics.data.gov.uk/id/local-authority/12UE,Huntingdonshire District Council,QE90,Property Development And Mgt,100,Hired Staff,219332,23/10/2017,23/10/2017,CR423917,HAYS,1007994239," 2,340.00 "
http://statistics.data.gov.uk/id/local-authority/12UE,Huntingdonshire District Council,ES01,Street Cleansing,100,Hired Staff,218560,12/10/2017,12/10/2017,CR416827,STAFFLINE GROUP,INO630548," 2,376.38 "
http://statistics.data.gov.uk/id/local-authority/12UE,Huntingdonshire District Council,MD20,Imd Shared Service,100,Hired Staff,218278,04/10/2017,05/10/2017,CR482676,ADVANTAGE,124986," 2,400.00 "
http://statistics.data.gov.uk/id/local-authority/12UE,Huntingdonshire District Council,EQ02,Recycling Collections,100,Hired Staff,218552,12/10/2017,12/10/2017,CR416827,STAFFLINE GROUP,IN0629373," 2,418.93 "
http://statistics.data.gov.uk/id/local-authority/12UE,Huntingdonshire District Council,ES01,Street Cleansing,100,Hired Staff,218559,12/10/2017,12/10/2017,CR416827,STAFFLINE GROUP,IN0629377," 2,452.13 "
http://statistics.data.gov.uk/id/local-authority/12UE,Huntingdonshire District Council,ER01,Domestic Waste Collection,100,Hired Staff,218548,12/10/2017,12/10/2017,CR416827,STAFFLINE GROUP,IN0629376," 2,460.37 "
http://statistics.data.gov.uk/id/local-authority/12UE,Huntingdonshire District Council,QE90,Property Development And Mgt,100,Hired Staff,219008,17/10/2017,17/10/2017,CR423917,HAYS,1007911721," 2,600.00 "
http://statistics.data.gov.uk/id/local-authority/12UE,Huntingdonshire District Council,QE90,Property Development And Mgt,100,Hired Staff,219009,17/10/2017,17/10/2017,CR423917,HAYS,1007938630," 2,600.00 "
http://statistics.data.gov.uk/id/local-authority/12UE,Huntingdonshire District Council,QE90,Property Development And Mgt,100,Hired Staff,219010,17/10/2017,17/10/2017,CR423917,HAYS,1007952013," 2,600.00 "
http://statistics.data.gov.uk/id/local-authority/12UE,Huntingdonshire District Council,MD20,Imd Shared Service,100,Hired Staff,218280,04/10/2017,05/10/2017,CR482676,ADVANTAGE,124985," 2,625.00 "
http://statistics.data.gov.uk/id/local-authority/12UE,Huntingdonshire District Council,MD20,Imd Shared Service,100,Hired Staff,219390,24/10/2017,26/10/2017,CR482676,ADVANTAGE,126298," 2,625.00 "
http://statistics.data.gov.uk/id/local-authority/12UE,Huntingdonshire District Council,MD20,Imd Shared Service,100,Hired Staff,219391,24/10/2017,26/10/2017,CR482676,ADVANTAGE,126243," 2,625.00 "
http://statistics.data.gov.uk/id/local-authority/12UE,Huntingdonshire District Council,ER01,Domestic Waste Collection,100,Hired Staff,218550,12/10/2017,12/10/2017,CR416827,STAFFLINE GROUP,IN0630547," 2,634.19 "
http://statistics.data.gov.uk/id/local-authority/12UE,Huntingdonshire District Council,EQ02,Recycling Collections,100,Hired Staff,218553,12/10/2017,12/10/2017,CR416827,STAFFLINE GROUP,IN0630545," 2,649.51 "
http://statistics.data.gov.uk/id/local-authority/12UE,Huntingdonshire District Council,MD20,Imd Shared Service,100,Hired Staff,219394,24/10/2017,26/10/2017,CR454029,PREMIER IT RECRUITMENT LTD,R023577," 2,675.00 "
http://statistics.data.gov.uk/id/local-authority/12UE,Huntingdonshire District Council,MD20,Imd Shared Service,100,Hired Staff,219398,24/10/2017,26/10/2017,CR454029,PREMIER IT RECRUITMENT LTD,R023524," 2,675.00 "
http://statistics.data.gov.uk/id/local-authority/12UE,Huntingdonshire District Council,CH45,Transformation - Customers,100,Hired Staff,219410,24/10/2017,24/10/2017,CR423917,HAYS,1007995060," 3,038.75 "
http://statistics.data.gov.uk/id/local-authority/12UE,Huntingdonshire District Council,MD20,Imd Shared Service,100,Hired Staff,218170,04/10/2017,05/10/2017,CR482676,ADVANTAGE,126141," 3,150.00 "
http://statistics.data.gov.uk/id/local-authority/12UE,Huntingdonshire District Council,CH45,Transformation - Customers,100,Hired Staff,219311,20/10/2017,20/10/2017,CR423917,HAYS,100797335," 3,575.00 "
http://statistics.data.gov.uk/id/local-authority/12UE,Huntingdonshire District Council,MD20,Imd Shared Service,100,Hired Staff,218616,11/10/2017,12/10/2017,CR424715,ADVANTAGE RESOURCING,90458306," 9,072.00 "
http://statistics.data.gov.uk/id/local-authority/12UE,Huntingdonshire District Council,MU34,Housing Policy R&D,100,Hired Staff,218720,12/10/2017,12/10/2017,CR000619,PETERBOROUGH CITY COUNCIL,132483," 10,758.96 "
http://statistics.data.gov.uk/id/local-authority/12UE,Huntingdonshire District Council,CH40,Transformation Programme,100,Hired Staff,616163,10/10/2017,19/10/2017,CR410677,ESSEX COUNTY COUNCIL,," 18,300.00 "
http://statistics.data.gov.uk/id/local-authority/12UE,Huntingdonshire District Council,MH07,Hr & Payroll Services,120,Recruitment Costs,616160,09/10/2017,09/10/2017,CR416282,NORTHAMPTONSHIRE COUNTY COUNCIL,339132, 378.78 
http://statistics.data.gov.uk/id/local-authority/12UE,Huntingdonshire District Council,HB85,Benefits Management,120,Recruitment Costs,219729,27/10/2017,27/10/2017,CR452143,ARCHANT COMMUNITY MEDIA LTD,82761125, 591.20 
http://statistics.data.gov.uk/id/local-authority/12UE,Huntingdonshire District Council,QM90,Markets Management,120,Recruitment Costs,218465,06/10/2017,06/10/2017,CR452143,ARCHANT COMMUNITY MEDIA LTD,82771575, 758.47 
http://statistics.data.gov.uk/id/local-authority/12UE,Huntingdonshire District Council,MU75,Audit,120,Recruitment Costs,218090,06/10/2017,06/10/2017,CR452143,ARCHANT COMMUNITY MEDIA LTD,82768287, 764.00 
http://statistics.data.gov.uk/id/local-authority/12UE,Huntingdonshire District Council,CH20,Corporate Director (Services),120,Recruitment Costs,218589,10/10/2017,10/10/2017,CR424638,GATENBY SANDERSON,33028," 1,104.80 "
http://statistics.data.gov.uk/id/local-authority/12UE,Huntingdonshire District Council,MU17,Planning Policy,120,Recruitment Costs,218716,12/10/2017,12/10/2017,CR479500,HAYMARKET MEDIA GROUP LTD,50113806," 2,000.00 "
http://statistics.data.gov.uk/id/local-authority/12UE,Huntingdonshire District Council,MD20,Imd Shared Service,120,Recruitment Costs,218251,04/10/2017,06/10/2017,CR482676,ADVANTAGE,126199," 2,674.80 "
http://statistics.data.gov.uk/id/local-authority/12UE,Huntingdonshire District Council,MH07,Hr & Payroll Services,130,Training,218316,05/10/2017,05/10/2017,CR424752,ARVATO LTD,95504667, 300.00 
http://statistics.data.gov.uk/id/local-authority/12UE,Huntingdonshire District Council,MH07,Hr & Payroll Services,130,Training,616154,09/10/2017,09/10/2017,CR416382,AEA BOOKINGS,21731, 740.00 
http://statistics.data.gov.uk/id/local-authority/12UE,Huntingdonshire District Council,ER01,Domestic Waste Collection,130,Training,219567,26/10/2017,26/10/2017,CR424642,GILDEN TRAINING,2336, 900.00 
http://statistics.data.gov.uk/id/local-authority/12UE,Huntingdonshire District Council,ER01,Domestic Waste Collection,130,Training,219568,26/10/2017,26/10/2017,CR424642,GILDEN TRAINING,2337, 900.00 
http://statistics.data.gov.uk/id/local-authority/12UE,Huntingdonshire District Council,MH07,Hr & Payroll Services,130,Training,219328,23/10/2017,23/10/2017,CR422726,SHELTER TRAINING,237207," 1,099.00 "
http://statistics.data.gov.uk/id/local-authority/12UE,Huntingdonshire District Council,KC80,Cctv Shared Service Hosting,137,Conferences,218926,18/10/2017,19/10/2017,CR424625,DODS GROUP PLC,PR0115692, 390.00 
http://statistics.data.gov.uk/id/local-authority/12UE,Huntingdonshire District Council,MH07,Hr & Payroll Services,144,Childcare Admin Vouchers,219520,25/10/2017,25/10/2017,CR412205,COMPUTERSHARE VOUCHERS LTD,C-0002603520, 269.22 
http://statistics.data.gov.uk/id/local-authority/12UE,Huntingdonshire District Council,CH09,Non Distributed Costs,151,Pension Early Retirements,615966,05/10/2017,05/10/2017,CR017440,CAMBRIDGESHIRE COUNTY COUNCIL,16015672," 32,164.20 "
http://statistics.data.gov.uk/id/local-authority/12UE,Huntingdonshire District Council,EG06,Grounds Maintenance,163,Protective Clothing & Uniforms,219349,24/10/2017,25/10/2017,CR423139,SMI GROUP,434837, 423.75 
http://statistics.data.gov.uk/id/local-authority/12UE,Huntingdonshire District Council,ER01,Domestic Waste Collection,163,Protective Clothing & Uniforms,218545,12/10/2017,12/10/2017,CR423139,SMI GROUP,431141, 531.00 
http://statistics.data.gov.uk/id/local-authority/12UE,Huntingdonshire District Council,ER01,Domestic Waste Collection,163,Protective Clothing & Uniforms,218544,12/10/2017,12/10/2017,CR423139,SMI GROUP,430351, 579.80 
http://statistics.data.gov.uk/id/local-authority/12UE,Huntingdonshire District Council,EG06,Grounds Maintenance,163,Protective Clothing & Uniforms,217848,05/10/2017,05/10/2017,CR411433,LANDMARK TRADING LTD,58573, 602.02 
http://statistics.data.gov.uk/id/local-authority/12UE,Huntingdonshire District Council,EG06,Grounds Maintenance,163,Protective Clothing & Uniforms,217702,01/10/2017,04/12/2017,CR422159,GROUNDSMAN,, 604.51 
http://statistics.data.gov.uk/id/local-authority/12UE,Huntingdonshire District Council,ES01,Street Cleansing,163,Protective Clothing & Uniforms,219041,24/10/2017,25/10/2017,CR423139,SMI GROUP,431637, 642.60 
http://statistics.data.gov.uk/id/local-authority/12UE,Huntingdonshire District Council,ER03,Trade Refuse,163,Protective Clothing & Uniforms,216494,18/10/2017,19/10/2017,CR423139,SMI GROUP,424172, 818.40 
http://statistics.data.gov.uk/id/local-authority/12UE,Huntingdonshire District Council,CH24,Head Of Operations,203,Other I T Hardware,219359,24/10/2017,26/10/2017,CR422733,BIST,SINV00117325, 350.00 
http://statistics.data.gov.uk/id/local-authority/12UE,Huntingdonshire District Council,MD22,Ccity Recharge Invoices,203,Other I T Hardware,219406,24/10/2017,26/10/2017,CR424771,IRON MOUNTAIN UK LIMITED,18155989, 702.68 
http://statistics.data.gov.uk/id/local-authority/12UE,Huntingdonshire District Council,MD20,Imd Shared Service,203,Other I T Hardware,218248,04/10/2017,06/10/2017,CR000242,INSIGHT DIRECT UK LTD,3570515, 720.00 
http://statistics.data.gov.uk/id/local-authority/12UE,Huntingdonshire District Council,MD22,Ccity Recharge Invoices,203,Other I T Hardware,218641,11/10/2017,12/10/2017,CR000242,INSIGHT DIRECT UK LTD,3565847, 720.00 
http://statistics.data.gov.uk/id/local-authority/12UE,Huntingdonshire District Council,MD23,Scdc Recharge Invoices,203,Other I T Hardware,218249,04/10/2017,06/10/2017,CR000242,INSIGHT DIRECT UK LTD,3570401, 720.00 
http://statistics.data.gov.uk/id/local-authority/12UE,Huntingdonshire District Council,MD23,Scdc Recharge Invoices,203,Other I T Hardware,218638,11/10/2017,12/10/2017,CR000242,INSIGHT DIRECT UK LTD,3572321, 742.00 
http://statistics.data.gov.uk/id/local-authority/12UE,Huntingdonshire District Council,MD20,Imd Shared Service,203,Other I T Hardware,218282,04/10/2017,05/10/2017,CR424771,IRON MOUNTAIN UK LIMITED,18155656, 751.59 
http://statistics.data.gov.uk/id/local-authority/12UE,Huntingdonshire District Council,MD20,Imd Shared Service,203,Other I T Hardware,219360,24/10/2017,26/10/2017,CR000242,INSIGHT DIRECT UK LTD,3590012," 1,055.00 "
http://statistics.data.gov.uk/id/local-authority/12UE,Huntingdonshire District Council,MD22,Ccity Recharge Invoices,203,Other I T Hardware,218634,11/10/2017,12/10/2017,CR482348,KHIPU NETWORKS LTD,17492," 2,055.83 "
http://statistics.data.gov.uk/id/local-authority/12UE,Huntingdonshire District Council,MD20,Imd Shared Service,203,Other I T Hardware,219365,24/10/2017,26/10/2017,CR000242,INSIGHT DIRECT UK LTD,3596505," 2,160.00 "
http://statistics.data.gov.uk/id/local-authority/12UE,Huntingdonshire District Council,MD23,Scdc Recharge Invoices,203,Other I T Hardware,219377,24/10/2017,26/10/2017,CR422733,BIST,SINV00111861," 3,200.00 "
http://statistics.data.gov.uk/id/local-authority/12UE,Huntingdonshire District Council,MD23,Scdc Recharge Invoices,203,Other I T Hardware,219356,24/10/2017,26/10/2017,CR000242,INSIGHT DIRECT UK LTD,3586360," 4,320.00 "
http://statistics.data.gov.uk/id/local-authority/12UE,Huntingdonshire District Council,MD20,Imd Shared Service,203,Other I T Hardware,219371,24/10/2017,26/10/2017,CR000242,INSIGHT DIRECT UK LTD,3584222," 5,760.00 "
http://statistics.data.gov.uk/id/local-authority/12UE,Huntingdonshire District Council,MD23,Scdc Recharge Invoices,203,Other I T Hardware,218250,04/10/2017,06/10/2017,CR000242,INSIGHT DIRECT UK LTD,3565855," 16,560.00 "
http://statistics.data.gov.uk/id/local-authority/12UE,Huntingdonshire District Council,MP01,Printing,206,Software,218158,04/10/2017,06/10/2017,CR422733,BIST,SINV00116524, 277.75 
http://statistics.data.gov.uk/id/local-authority/12UE,Huntingdonshire District Council,MD22,Ccity Recharge Invoices,206,Software,219355,24/10/2017,26/10/2017,CR424937,KPR MIDLINK LTD,13199, 285.00 
http://statistics.data.gov.uk/id/local-authority/12UE,Huntingdonshire District Council,MD20,Imd Shared Service,206,Software,219351,24/10/2017,26/10/2017,CR031918,PHOENIX SOFTWARE LTD,OP/1807317, 312.27 
http://statistics.data.gov.uk/id/local-authority/12UE,Huntingdonshire District Council,MD20,Imd Shared Service,206,Software,218622,11/10/2017,12/10/2017,CR028925,NORTHGATEPUBLIC SERVICES UK LTD,91396836, 625.00 
http://statistics.data.gov.uk/id/local-authority/12UE,Huntingdonshire District Council,MD22,Ccity Recharge Invoices,206,Software,219379,24/10/2017,26/10/2017,CR424924,SOTI LIMITED,INV-000040061, 748.80 
http://statistics.data.gov.uk/id/local-authority/12UE,Huntingdonshire District Council,HB85,Benefits Management,206,Software,218312,05/10/2017,05/10/2017,CR455548,CALLCREDIT LTD,722035," 1,340.00 "
http://statistics.data.gov.uk/id/local-authority/12UE,Huntingdonshire District Council,CH43,Transformation - Business,206,Software,219352,24/10/2017,26/10/2017,CR031918,PHOENIX SOFTWARE LTD,OP/1807211," 1,623.20 "
http://statistics.data.gov.uk/id/local-authority/12UE,Huntingdonshire District Council,MD24,Hdc Recharge Invoices,206,Software,218178,04/10/2017,06/10/2017,CR424956,SATISNET,13125," 1,701.00 "
http://statistics.data.gov.uk/id/local-authority/12UE,Huntingdonshire District Council,MD20,Imd Shared Service,206,Software,218623,11/10/2017,12/10/2017,CR028925,NORTHGATEPUBLIC SERVICES UK LTD,91396837," 1,960.79 "
http://statistics.data.gov.uk/id/local-authority/12UE,Huntingdonshire District Council,HB85,Benefits Management,206,Software,218313,05/10/2017,05/10/2017,CR455548,CALLCREDIT LTD,11857," 2,400.00 "
http://statistics.data.gov.uk/id/local-authority/12UE,Huntingdonshire District Council,MD20,Imd Shared Service,206,Software,218624,11/10/2017,12/10/2017,CR028925,NORTHGATEPUBLIC SERVICES UK LTD,91396838," 3,561.91 "
http://statistics.data.gov.uk/id/local-authority/12UE,Huntingdonshire District Council,MD22,Ccity Recharge Invoices,206,Software,219405,24/10/2017,26/10/2017,CR028925,NORTHGATEPUBLIC SERVICES UK LTD,91397302," 4,256.34 "
http://statistics.data.gov.uk/id/local-authority/12UE,Huntingdonshire District Council,MD22,Ccity Recharge Invoices,206,Software,218157,04/10/2017,06/10/2017,CR481134,IDOX,7017789," 14,000.00 "
http://statistics.data.gov.uk/id/local-authority/12UE,Huntingdonshire District Council,LB33,Exercise Referral,220,Printing (External),218314,05/10/2017,05/10/2017,CR413516,CLANPRESS KING'S LYNN LTD,41286, 262.00 
http://statistics.data.gov.uk/id/local-authority/12UE,Huntingdonshire District Council,CE90,Electoral Registration,220,Printing (External),219742,30/10/2017,30/10/2017,CR416581,SCI PRINT LIMITED,3400," 2,064.29 "
http://statistics.data.gov.uk/id/local-authority/12UE,Huntingdonshire District Council,LL01,Leisure Centre Corporate Mngmt,220,Printing (External),218652,17/10/2017,17/10/2017,CR413516,CLANPRESS KING'S LYNN LTD,41470," 2,226.00 "
http://statistics.data.gov.uk/id/local-authority/12UE,Huntingdonshire District Council,CE90,Electoral Registration,220,Printing (External),218230,03/10/2017,03/10/2017,CR416581,SCI PRINT LIMITED,3353," 2,988.78 "
http://statistics.data.gov.uk/id/local-authority/12UE,Huntingdonshire District Council,MS01,Post Handling,231,Postage,49977,26/10/2017,27/10/2017,,,,-800.00 
http://statistics.data.gov.uk/id/local-authority/12UE,Huntingdonshire District Council,HB85,Benefits Management,231,Postage,219019,17/10/2017,18/10/2017,CR424061,WHISTL UK LTD,IN16PS17005404, 253.79 
http://statistics.data.gov.uk/id/local-authority/12UE,Huntingdonshire District Council,CE90,Electoral Registration,231,Postage,218530,09/10/2017,10/10/2017,CR424061,WHISTL UK LTD,IN16PS17005111, 290.49 
http://statistics.data.gov.uk/id/local-authority/12UE,Huntingdonshire District Council,CE90,Electoral Registration,231,Postage,218529,09/10/2017,10/10/2017,CR424061,WHISTL UK LTD,IN16PS17005135, 298.63 
http://statistics.data.gov.uk/id/local-authority/12UE,Huntingdonshire District Council,CE90,Electoral Registration,231,Postage,218524,09/10/2017,10/10/2017,CR027083,ROYAL MAIL,9055250202, 300.96 
http://statistics.data.gov.uk/id/local-authority/12UE,Huntingdonshire District Council,CE90,Electoral Registration,231,Postage,219732,27/10/2017,30/10/2017,CR027083,ROYAL MAIL,9055329031, 325.86 
http://statistics.data.gov.uk/id/local-authority/12UE,Huntingdonshire District Council,CE90,Electoral Registration,231,Postage,219730,27/10/2017,30/10/2017,CR424061,WHISTL UK LTD,IN16PS17005665, 352.34 
http://statistics.data.gov.uk/id/local-authority/12UE,Huntingdonshire District Council,CE90,Electoral Registration,231,Postage,218896,13/10/2017,13/10/2017,CR424061,WHISTL UK LTD,IN16PS17005275, 442.01 
http://statistics.data.gov.uk/id/local-authority/12UE,Huntingdonshire District Council,MS01,Post Handling,231,Postage,218524,09/10/2017,10/10/2017,CR027083,ROYAL MAIL,9055250202, 502.20 
http://statistics.data.gov.uk/id/local-authority/12UE,Huntingdonshire District Council,MS01,Post Handling,231,Postage,218524,09/10/2017,10/10/2017,CR027083,ROYAL MAIL,9055250202, 644.79 
http://statistics.data.gov.uk/id/local-authority/12UE,Huntingdonshire District Council,CE88,Parliamentary  Elections,231,Postage,218895,13/10/2017,13/10/2017,CR027083,ROYAL MAIL,9055287164, 662.88 
http://statistics.data.gov.uk/id/local-authority/12UE,Huntingdonshire District Council,MS01,Post Handling,231,Postage,219730,27/10/2017,30/10/2017,CR424061,WHISTL UK LTD,IN16PS17005665, 755.46 
http://statistics.data.gov.uk/id/local-authority/12UE,Huntingdonshire District Council,MS01,Post Handling,231,Postage,49992,30/10/2017,30/10/2017,,,, 800.00 
http://statistics.data.gov.uk/id/local-authority/12UE,Huntingdonshire District Council,MS01,Post Handling,231,Postage,218896,13/10/2017,13/10/2017,CR424061,WHISTL UK LTD,IN16PS17005275, 837.31 
http://statistics.data.gov.uk/id/local-authority/12UE,Huntingdonshire District Council,MS01,Post Handling,231,Postage,219732,27/10/2017,30/10/2017,CR027083,ROYAL MAIL,9055329031, 989.59 
http://statistics.data.gov.uk/id/local-authority/12UE,Huntingdonshire District Council,MS01,Post Handling,231,Postage,219731,27/10/2017,30/10/2017,CR424061,WHISTL UK LTD,IN16PS17005530, 992.21 
http://statistics.data.gov.uk/id/local-authority/12UE,Huntingdonshire District Council,MS01,Post Handling,231,Postage,219019,17/10/2017,18/10/2017,CR424061,WHISTL UK LTD,IN16PS17005404," 1,033.69 "
http://statistics.data.gov.uk/id/local-authority/12UE,Huntingdonshire District Council,HB85,Benefits Management,231,Postage,218896,13/10/2017,13/10/2017,CR424061,WHISTL UK LTD,IN16PS17005275," 1,034.08 "
http://statistics.data.gov.uk/id/local-authority/12UE,Huntingdonshire District Council,MS01,Post Handling,231,Postage,218530,09/10/2017,10/10/2017,CR424061,WHISTL UK LTD,IN16PS17005111," 1,037.75 "
http://statistics.data.gov.uk/id/local-authority/12UE,Huntingdonshire District Council,LQ21,Burgess Hall,231,Postage,218529,09/10/2017,10/10/2017,CR424061,WHISTL UK LTD,IN16PS17005135," 1,040.36 "
http://statistics.data.gov.uk/id/local-authority/12UE,Huntingdonshire District Council,MS01,Post Handling,231,Postage,218529,09/10/2017,10/10/2017,CR424061,WHISTL UK LTD,IN16PS17005135," 1,074.82 "
http://statistics.data.gov.uk/id/local-authority/12UE,Huntingdonshire District Council,CE90,Electoral Registration,231,Postage,218525,09/10/2017,10/10/2017,CR027083,ROYAL MAIL,9055257279," 1,131.97 "
http://statistics.data.gov.uk/id/local-authority/12UE,Huntingdonshire District Council,MS01,Post Handling,231,Postage,50148,31/10/2017,30/11/2017,,,," 1,600.00 "
http://statistics.data.gov.uk/id/local-authority/12UE,Huntingdonshire District Council,HB85,Benefits Management,231,Postage,218529,09/10/2017,10/10/2017,CR424061,WHISTL UK LTD,IN16PS17005135," 1,813.22 "
http://statistics.data.gov.uk/id/local-authority/12UE,Huntingdonshire District Council,HB85,Benefits Management,231,Postage,219731,27/10/2017,30/10/2017,CR424061,WHISTL UK LTD,IN16PS17005530," 2,311.55 "
http://statistics.data.gov.uk/id/local-authority/12UE,Huntingdonshire District Council,CE90,Electoral Registration,231,Postage,218230,03/10/2017,03/10/2017,CR416581,SCI PRINT LIMITED,3353," 7,388.64 "
http://statistics.data.gov.uk/id/local-authority/12UE,Huntingdonshire District Council,MD20,Imd Shared Service,240,Telephone &Mobile Phonecharges,49977,26/10/2017,27/10/2017,,,,"-2,050.15 "
http://statistics.data.gov.uk/id/local-authority/12UE,Huntingdonshire District Council,MD20,Imd Shared Service,240,Telephone &Mobile Phonecharges,218664,11/10/2017,12/10/2017,CR033120,VIRGIN MEDIA BUSINESS,742878104/001, 796.37 
http://statistics.data.gov.uk/id/local-authority/12UE,Huntingdonshire District Council,MD20,Imd Shared Service,240,Telephone &Mobile Phonecharges,50148,31/10/2017,30/11/2017,,,," 1,976.32 "
http://statistics.data.gov.uk/id/local-authority/12UE,Huntingdonshire District Council,MD20,Imd Shared Service,240,Telephone &Mobile Phonecharges,49992,30/10/2017,30/10/2017,,,," 2,050.15 "
http://statistics.data.gov.uk/id/local-authority/12UE,Huntingdonshire District Council,MD22,Ccity Recharge Invoices,240,Telephone &Mobile Phonecharges,219420,24/10/2017,26/10/2017,CR455148,VIRGIN MEDIA BUSINESS/CPSN,930635-044A," 9,761.23 "
http://statistics.data.gov.uk/id/local-authority/12UE,Huntingdonshire District Council,KC80,Cctv Shared Service Hosting,248,I T Line Rental,219419,24/10/2017,26/10/2017,CR455148,VIRGIN MEDIA BUSINESS/CPSN,923469-084A, 526.08 
http://statistics.data.gov.uk/id/local-authority/12UE,Huntingdonshire District Council,MD20,Imd Shared Service,248,I T Line Rental,218664,11/10/2017,12/10/2017,CR033120,VIRGIN MEDIA BUSINESS,742878104/001," 1,111.90 "
http://statistics.data.gov.uk/id/local-authority/12UE,Huntingdonshire District Council,MD24,Hdc Recharge Invoices,248,I T Line Rental,219877,31/10/2017,31/10/2017,CR455799,ORANGE AIRTIME,1264434866," 1,573.77 "
http://statistics.data.gov.uk/id/local-authority/12UE,Huntingdonshire District Council,MD24,Hdc Recharge Invoices,248,I T Line Rental,218661,11/10/2017,12/10/2017,CR482316,VODAFONE CABLE & WIRELESS,UK10/102017/637," 2,097.51 "
http://statistics.data.gov.uk/id/local-authority/12UE,Huntingdonshire District Council,MD23,Scdc Recharge Invoices,248,I T Line Rental,219421,24/10/2017,26/10/2017,CR455148,VIRGIN MEDIA BUSINESS/CPSN,923186-072A," 2,751.03 "
http://statistics.data.gov.uk/id/local-authority/12UE,Huntingdonshire District Council,MD20,Imd Shared Service,248,I T Line Rental,219419,24/10/2017,26/10/2017,CR455148,VIRGIN MEDIA BUSINESS/CPSN,923469-084A," 9,565.96 "
http://statistics.data.gov.uk/id/local-authority/12UE,Huntingdonshire District Council,LV06,Parks & Open Spaces,250,Books & Publications,218113,03/10/2017,05/10/2017,CR479836,APSE,S1718/40, 350.00 
http://statistics.data.gov.uk/id/local-authority/12UE,Huntingdonshire District Council,LQ21,Burgess Hall,255,Advertising/Promoting Services,218122,04/10/2017,05/10/2017,CR482680,MY FRIEND DIRECTORIES,MFM2142, 255.00 
http://statistics.data.gov.uk/id/local-authority/12UE,Huntingdonshire District Council,LQ21,Burgess Hall,255,Advertising/Promoting Services,218901,18/10/2017,19/10/2017,CR415764,ARCHANT HERTS & CAMBS,82780563, 256.33 
http://statistics.data.gov.uk/id/local-authority/12UE,Huntingdonshire District Council,LQ21,Burgess Hall,255,Advertising/Promoting Services,219412,24/10/2017,26/10/2017,CR415764,ARCHANT HERTS & CAMBS,82783576, 256.33 
http://statistics.data.gov.uk/id/local-authority/12UE,Huntingdonshire District Council,LL01,Leisure Centre Corporate Mngmt,255,Advertising/Promoting Services,218194,04/10/2017,05/10/2017,CR416383,BIGPRINTING,1710665, 276.44 
http://statistics.data.gov.uk/id/local-authority/12UE,Huntingdonshire District Council,LL01,Leisure Centre Corporate Mngmt,255,Advertising/Promoting Services,219139,18/10/2017,19/10/2017,CR423394,TERM TIMES,988/ONE, 360.00 
http://statistics.data.gov.uk/id/local-authority/12UE,Huntingdonshire District Council,LL01,Leisure Centre Corporate Mngmt,255,Advertising/Promoting Services,218464,11/10/2017,12/10/2017,CR423981,KOALA CREATIVE LTD,INV-1960, 375.00 
http://statistics.data.gov.uk/id/local-authority/12UE,Huntingdonshire District Council,LQ21,Burgess Hall,255,Advertising/Promoting Services,218286,04/10/2017,05/10/2017,CR415764,ARCHANT HERTS & CAMBS,82774704, 481.33 
http://statistics.data.gov.uk/id/local-authority/12UE,Huntingdonshire District Council,LQ21,Burgess Hall,255,Advertising/Promoting Services,218597,18/10/2017,19/10/2017,CR415764,ARCHANT HERTS & CAMBS,82778278, 489.96 
http://statistics.data.gov.uk/id/local-authority/12UE,Huntingdonshire District Council,LQ90,Site & Centre Management,255,Advertising/Promoting Services,50148,31/10/2017,30/11/2017,,,, 503.00 
http://statistics.data.gov.uk/id/local-authority/12UE,Huntingdonshire District Council,LL01,Leisure Centre Corporate Mngmt,255,Advertising/Promoting Services,50148,31/10/2017,30/11/2017,,,, 925.00 
http://statistics.data.gov.uk/id/local-authority/12UE,Huntingdonshire District Council,LQ21,Burgess Hall,255,Advertising/Promoting Services,218464,11/10/2017,12/10/2017,CR423981,KOALA CREATIVE LTD,INV-1960," 1,050.00 "
http://statistics.data.gov.uk/id/local-authority/12UE,Huntingdonshire District Council,ER01,Domestic Waste Collection,255,Advertising/Promoting Services,219529,25/10/2017,25/10/2017,CR424897,LIDVERTISE LTD,1002," 3,500.00 "
http://statistics.data.gov.uk/id/local-authority/12UE,Huntingdonshire District Council,HB85,Benefits Management,295,Other Office Expenses,218964,17/10/2017,18/10/2017,CR033155,CITY LOCKS LTD,102243, 290.00 
http://statistics.data.gov.uk/id/local-authority/12UE,Huntingdonshire District Council,GL14,Land Enquiry Con 29 Full,295,Other Office Expenses,616410,18/10/2017,18/10/2017,CR006678,CAMBRIDGESHIRE COUNTY COUNCIL,10756908," 13,182.00 "
http://statistics.data.gov.uk/id/local-authority/12UE,Huntingdonshire District Council,MU69,Customer Service Centres,300,Building Construction,218497,10/10/2017,12/10/2017,CR424641,FOCUS CONSULTANTS 2010 LLP,771," 1,100.00 "
http://statistics.data.gov.uk/id/local-authority/12UE,Huntingdonshire District Council,LQ90,Site & Centre Management,303,Building Mtce,217145,23/10/2017,23/10/2017,CR424915,LATTA HIRE LIMITED,,"-1,415.00 "
http://statistics.data.gov.uk/id/local-authority/12UE,Huntingdonshire District Council,MB41,Eastfield House,303,Building Mtce,219130,18/10/2017,19/10/2017,CR423524,NOVUS COMPLIANCE SERVICES LTD,CN-4895,"-1,345.00 "
http://statistics.data.gov.uk/id/local-authority/12UE,Huntingdonshire District Council,L213,Ol Huntingdon Expansion,303,Building Mtce,218701,11/10/2017,12/10/2017,CR424006,PRP CONSULTING,280956, 250.00 
http://statistics.data.gov.uk/id/local-authority/12UE,Huntingdonshire District Council,LP90,Site & Centre Management,303,Building Mtce,218121,31/10/2017,01/11/2017,CR478578,HUGH CRANE LTD,568389, 258.68 
http://statistics.data.gov.uk/id/local-authority/12UE,Huntingdonshire District Council,LQ90,Site & Centre Management,303,Building Mtce,219457,31/10/2017,01/11/2017,CR422887,RICHARD SISTROM PAINTING & DECORATING,25, 260.00 
http://statistics.data.gov.uk/id/local-authority/12UE,Huntingdonshire District Council,MB01,Pathfinder House,303,Building Mtce,219471,25/10/2017,25/10/2017,CR002782,DAL-ROD UK LTD,45510, 285.00 
http://statistics.data.gov.uk/id/local-authority/12UE,Huntingdonshire District Council,MB01,Pathfinder House,303,Building Mtce,218995,17/10/2017,18/10/2017,CR000363,B. S. GRAVES ELECTRICAL LTD,25148, 290.18 
http://statistics.data.gov.uk/id/local-authority/12UE,Huntingdonshire District Council,LP90,Site & Centre Management,303,Building Mtce,219143,18/10/2017,19/10/2017,CR002782,DAL-ROD UK LTD,45074, 294.00 
http://statistics.data.gov.uk/id/local-authority/12UE,Huntingdonshire District Council,LQ90,Site & Centre Management,303,Building Mtce,219825,31/10/2017,01/11/2017,CR423380,NJL PROPERTY SOLUTIONS,OLSI0110, 299.83 
http://statistics.data.gov.uk/id/local-authority/12UE,Huntingdonshire District Council,LN90,Site & Centre Management,303,Building Mtce,219433,24/10/2017,26/10/2017,CR423380,NJL PROPERTY SOLUTIONS,OLSN0113, 328.65 
http://statistics.data.gov.uk/id/local-authority/12UE,Huntingdonshire District Council,HF01,Mobile Home Park,303,Building Mtce,218609,12/10/2017,12/10/2017,CR401276,LUMINUS HOMES,DIHH/00003064, 360.01 
http://statistics.data.gov.uk/id/local-authority/12UE,Huntingdonshire District Council,QC01,Commercial Properties,303,Building Mtce,218707,11/10/2017,11/10/2017,CR030582,HUNTS FORUM OF VOLUNTARY ORGANISATIONS,6101, 375.00 
http://statistics.data.gov.uk/id/local-authority/12UE,Huntingdonshire District Council,LP90,Site & Centre Management,303,Building Mtce,219432,31/10/2017,01/11/2017,CR423380,NJL PROPERTY SOLUTIONS,OLHN0104, 410.88 
http://statistics.data.gov.uk/id/local-authority/12UE,Huntingdonshire District Council,LQ90,Site & Centre Management,303,Building Mtce,218197,04/10/2017,05/10/2017,CR406985,ECOCLEEN SERVICES LIMITED,INV564719, 411.29 
http://statistics.data.gov.uk/id/local-authority/12UE,Huntingdonshire District Council,MB41,Eastfield House,303,Building Mtce,218722,12/10/2017,12/10/2017,CR477443,HYGIENE SOLUTIONS,31369, 418.40 
http://statistics.data.gov.uk/id/local-authority/12UE,Huntingdonshire District Council,LQ90,Site & Centre Management,303,Building Mtce,219812,31/10/2017,01/11/2017,CR422879,ENER-G COMBINED POWER LTD,17502592, 425.00 
http://statistics.data.gov.uk/id/local-authority/12UE,Huntingdonshire District Council,LN90,Site & Centre Management,303,Building Mtce,219461,24/10/2017,26/10/2017,CR028041,ROGER WILSON ELECTRONICS,9883, 472.00 
http://statistics.data.gov.uk/id/local-authority/12UE,Huntingdonshire District Council,LL10,The Club Alconbury Weald,303,Building Mtce,218190,04/10/2017,05/10/2017,CR424041,BRIDGE FIBRE LIMITED,33423, 475.00 
http://statistics.data.gov.uk/id/local-authority/12UE,Huntingdonshire District Council,MB41,Eastfield House,303,Building Mtce,219063,20/10/2017,20/10/2017,CR000841,WARBOYS SERVICES LTD,18420, 482.13 
http://statistics.data.gov.uk/id/local-authority/12UE,Huntingdonshire District Council,LK90,Site & Centre Management,303,Building Mtce,218893,18/10/2017,19/10/2017,CR416716,JBA CONSTRUCTION & MANAGEMENT SERVICES,17/26, 520.00 
http://statistics.data.gov.uk/id/local-authority/12UE,Huntingdonshire District Council,LK90,Site & Centre Management,303,Building Mtce,218301,04/10/2017,05/10/2017,CR424076,G S GLAZING SERVICES,HLC0124, 595.00 
http://statistics.data.gov.uk/id/local-authority/12UE,Huntingdonshire District Council,QM01,Huntingdon Market,303,Building Mtce,218227,03/10/2017,05/10/2017,CR000363,B. S. GRAVES ELECTRICAL LTD,24905, 626.00 
http://statistics.data.gov.uk/id/local-authority/12UE,Huntingdonshire District Council,LN90,Site & Centre Management,303,Building Mtce,217754,04/10/2017,05/10/2017,CR424623,THE POOL & SPA SPECIALISTS LTD,7837, 630.00 
http://statistics.data.gov.uk/id/local-authority/12UE,Huntingdonshire District Council,HF01,Mobile Home Park,303,Building Mtce,218610,12/10/2017,12/10/2017,CR401276,LUMINUS HOMES,DIHH00003065, 660.00 
http://statistics.data.gov.uk/id/local-authority/12UE,Huntingdonshire District Council,LN90,Site & Centre Management,303,Building Mtce,217758,04/10/2017,05/10/2017,CR028041,ROGER WILSON ELECTRONICS,9859, 755.56 
http://statistics.data.gov.uk/id/local-authority/12UE,Huntingdonshire District Council,LN29,Outdoor Sports,303,Building Mtce,217758,04/10/2017,05/10/2017,CR028041,ROGER WILSON ELECTRONICS,9859, 800.00 
http://statistics.data.gov.uk/id/local-authority/12UE,Huntingdonshire District Council,L272,Ol Hdon Changing Facilities,303,Building Mtce,218462,11/10/2017,12/10/2017,CR424869,FOCUS CONSULTANTS 2010 LLP,794, 820.00 
http://statistics.data.gov.uk/id/local-authority/12UE,Huntingdonshire District Council,L274,Ol St Ives Burgess Hall,303,Building Mtce,218462,11/10/2017,12/10/2017,CR424869,FOCUS CONSULTANTS 2010 LLP,794, 820.00 
http://statistics.data.gov.uk/id/local-authority/12UE,Huntingdonshire District Council,L116,St Ivo - General Improve (Cs),303,Building Mtce,219454,31/10/2017,01/11/2017,CR422887,RICHARD SISTROM PAINTING & DECORATING,24, 858.00 
http://statistics.data.gov.uk/id/local-authority/12UE,Huntingdonshire District Council,L259,Ramsey L C - Gen Improve (Cs),303,Building Mtce,218184,11/10/2017,12/10/2017,CR028041,ROGER WILSON ELECTRONICS,9863," 1,019.70 "
http://statistics.data.gov.uk/id/local-authority/12UE,Huntingdonshire District Council,LQ90,Site & Centre Management,303,Building Mtce,219462,31/10/2017,01/11/2017,CR028041,ROGER WILSON ELECTRONICS,9882," 1,082.70 "
http://statistics.data.gov.uk/id/local-authority/12UE,Huntingdonshire District Council,L259,Ramsey L C - Gen Improve (Cs),303,Building Mtce,219837,31/10/2017,01/11/2017,CR422407,HEASELL ELECTROMECHANICAL SERVICES LTD,429083," 1,089.16 "
http://statistics.data.gov.uk/id/local-authority/12UE,Huntingdonshire District Council,LV06,Parks & Open Spaces,303,Building Mtce,218228,03/10/2017,05/10/2017,CR000363,B. S. GRAVES ELECTRICAL LTD,24902," 1,134.00 "
http://statistics.data.gov.uk/id/local-authority/12UE,Huntingdonshire District Council,LQ90,Site & Centre Management,303,Building Mtce,218626,11/10/2017,12/10/2017,CR422914,STERLING HYDROTECH LTD,29077," 1,154.00 "
http://statistics.data.gov.uk/id/local-authority/12UE,Huntingdonshire District Council,L159,Hunt Leis C -Gen Improve (Cs),303,Building Mtce,219467,31/10/2017,01/11/2017,CR422407,HEASELL ELECTROMECHANICAL SERVICES LTD,429038," 1,176.00 "
http://statistics.data.gov.uk/id/local-authority/12UE,Huntingdonshire District Council,LD90,Hinchingbrooke Park Management,303,Building Mtce,218119,03/10/2017,05/10/2017,CR416385,R A BAKER GLAZIERS & MERCHANTS LTD,125621," 1,223.40 "
http://statistics.data.gov.uk/id/local-authority/12UE,Huntingdonshire District Council,MB41,Eastfield House,303,Building Mtce,216713,18/10/2017,19/10/2017,CR423524,NOVUS COMPLIANCE SERVICES LTD,4758," 1,345.00 "
http://statistics.data.gov.uk/id/local-authority/12UE,Huntingdonshire District Council,MB41,Eastfield House,303,Building Mtce,219129,18/10/2017,19/10/2017,CR423524,NOVUS COMPLIANCE SERVICES LTD,INV-4896," 1,345.50 "
http://statistics.data.gov.uk/id/local-authority/12UE,Huntingdonshire District Council,QD01,Industrial Properties,303,Building Mtce,218290,04/10/2017,04/10/2017,CR423524,NOVUS COMPLIANCE SERVICES LTD,NC32022," 1,377.00 "
http://statistics.data.gov.uk/id/local-authority/12UE,Huntingdonshire District Council,L274,Ol St Ives Burgess Hall,303,Building Mtce,217145,23/10/2017,23/10/2017,CR424915,LATTA HIRE LIMITED,," 1,415.00 "
http://statistics.data.gov.uk/id/local-authority/12UE,Huntingdonshire District Council,QD01,Industrial Properties,303,Building Mtce,219149,18/10/2017,18/10/2017,CR424980,DOOR SERVICES PLUS LIMITED,3773," 1,635.00 "
http://statistics.data.gov.uk/id/local-authority/12UE,Huntingdonshire District Council,LQ90,Site & Centre Management,303,Building Mtce,219847,31/10/2017,01/11/2017,CR422336,FLEXEREFRIGERATION LTD,3103," 1,662.50 "
http://statistics.data.gov.uk/id/local-authority/12UE,Huntingdonshire District Council,L259,Ramsey L C - Gen Improve (Cs),303,Building Mtce,219815,31/10/2017,01/11/2017,CR422407,HEASELL ELECTROMECHANICAL SERVICES LTD,429082," 1,692.74 "
http://statistics.data.gov.uk/id/local-authority/12UE,Huntingdonshire District Council,L159,Hunt Leis C -Gen Improve (Cs),303,Building Mtce,218115,31/10/2017,01/11/2017,CR417073,GEZE  UK LTD,88336761," 2,229.20 "
http://statistics.data.gov.uk/id/local-authority/12UE,Huntingdonshire District Council,L274,Ol St Ives Burgess Hall,303,Building Mtce,218892,18/10/2017,19/10/2017,CR422909,D H PROPERTY MAINTNEANCE & LANDSCAPES,100," 2,560.00 "
http://statistics.data.gov.uk/id/local-authority/12UE,Huntingdonshire District Council,LP90,Site & Centre Management,303,Building Mtce,218469,18/10/2017,19/10/2017,CR132649,ENER G NATURAL POWER LTD,17502420," 10,308.88 "
http://statistics.data.gov.uk/id/local-authority/12UE,Huntingdonshire District Council,L213,Ol Huntingdon Expansion,303,Building Mtce,218687,11/10/2017,12/10/2017,CR424970,ARW SPECIALIST BUILDING CONTRACTORS LTD,3004," 30,416.66 "
http://statistics.data.gov.uk/id/local-authority/12UE,Huntingdonshire District Council,L274,Ol St Ives Burgess Hall,303,Building Mtce,218086,30/10/2017,30/10/2017,CR032423,BURMOR CONSTRUCTION,3022," 93,710.92 "
http://statistics.data.gov.uk/id/local-authority/12UE,Huntingdonshire District Council,LK29,Outdoor Sports,351,Grounds Mtce Contractors,218223,11/10/2017,12/10/2017,CR416316,SHERRIFF AMENITY SERVICES,CD970562729, 274.56 
http://statistics.data.gov.uk/id/local-authority/12UE,Huntingdonshire District Council,LK29,Outdoor Sports,351,Grounds Mtce Contractors,218917,18/10/2017,19/10/2017,CR031941,TECHNICAL SURFACES LTD,52660, 350.00 
http://statistics.data.gov.uk/id/local-authority/12UE,Huntingdonshire District Council,LN29,Outdoor Sports,351,Grounds Mtce Contractors,218938,18/10/2017,19/10/2017,CR031941,TECHNICAL SURFACES LTD,52659, 350.00 
http://statistics.data.gov.uk/id/local-authority/12UE,Huntingdonshire District Council,LK29,Outdoor Sports,351,Grounds Mtce Contractors,218224,04/10/2017,05/10/2017,CR416316,SHERRIFF AMENITY SERVICES,CD970557906, 752.00 
http://statistics.data.gov.uk/id/local-authority/12UE,Huntingdonshire District Council,LV06,Parks & Open Spaces,360,Playground Equipment,218489,09/10/2017,12/10/2017,CR455051,EIBE PLAY LTD,90122000, 822.80 
http://statistics.data.gov.uk/id/local-authority/12UE,Huntingdonshire District Council,MB01,Pathfinder House,380,Plant & Equipment Maintenance,219071,17/10/2017,18/10/2017,CR000483,KONE LIFTS LTD,113138813," 1,162.50 "
http://statistics.data.gov.uk/id/local-authority/12UE,Huntingdonshire District Council,QD01,Industrial Properties,410,Rent,49977,26/10/2017,27/10/2017,,,,"-30,000.00 "
http://statistics.data.gov.uk/id/local-authority/12UE,Huntingdonshire District Council,QD01,Industrial Properties,410,Rent,49992,30/10/2017,30/10/2017,,,," 30,000.00 "
http://statistics.data.gov.uk/id/local-authority/12UE,Huntingdonshire District Council,MU75,Audit,411,Hire Of Rooms,615964,05/10/2017,05/10/2017,CR422915,PERSONAL DATA REDACTED,REFUND, 300.00 
http://statistics.data.gov.uk/id/local-authority/12UE,Huntingdonshire District Council,MB41,Eastfield House,412,Service Charges,219167,19/10/2017,19/10/2017,CR424128,CAMBRIDGE VENDING,204182,-267.71 
http://statistics.data.gov.uk/id/local-authority/12UE,Huntingdonshire District Council,MB41,Eastfield House,412,Service Charges,219167,19/10/2017,19/10/2017,CR424128,CAMBRIDGE VENDING,204182, 285.70 
http://statistics.data.gov.uk/id/local-authority/12UE,Huntingdonshire District Council,LN01,Swimming,412,Service Charges,218961,17/10/2017,18/10/2017,CR477611,EDF ENERGY CUSTOMER FIELD SERVICES,600013028, 360.00 
http://statistics.data.gov.uk/id/local-authority/12UE,Huntingdonshire District Council,TC68,Huntingdon Mill Common,416,Land Lease,50148,31/10/2017,30/11/2017,,,," 1,750.00 "
http://statistics.data.gov.uk/id/local-authority/12UE,Huntingdonshire District Council,KC01,Cctv Huntingdonshire,420,Electricity,219165,19/10/2017,02/11/2017,CR416430,E-ON ENERGY,,"-1,116.94 "
http://statistics.data.gov.uk/id/local-authority/12UE,Huntingdonshire District Council,TB10,Bus Shelters,420,Electricity,218645,12/10/2017,12/10/2017,CR416430,E-ON ENERGY,11458902300, 383.95 
http://statistics.data.gov.uk/id/local-authority/12UE,Huntingdonshire District Council,LV06,Parks & Open Spaces,420,Electricity,219166,19/10/2017,19/10/2017,CR407130,SWALEC,901402498, 442.30 
http://statistics.data.gov.uk/id/local-authority/12UE,Huntingdonshire District Council,KC01,Cctv Huntingdonshire,420,Electricity,219165,19/10/2017,19/10/2017,CR416430,E-ON ENERGY,11398240710," 1,116.94 "
http://statistics.data.gov.uk/id/local-authority/12UE,Huntingdonshire District Council,KC80,Cctv Shared Service Hosting,420,Electricity,219165,19/10/2017,02/11/2017,CR416430,E-ON ENERGY,," 1,116.94 "
http://statistics.data.gov.uk/id/local-authority/12UE,Huntingdonshire District Council,LP01,Swimming,420,Electricity,218920,16/10/2017,16/10/2017,CR407130,SWALEC,481677109," 1,294.47 "
http://statistics.data.gov.uk/id/local-authority/12UE,Huntingdonshire District Council,LS90,Site & Centre Management,420,Electricity,218912,16/10/2017,16/10/2017,CR407130,SWALEC,211687030," 2,436.67 "
http://statistics.data.gov.uk/id/local-authority/12UE,Huntingdonshire District Council,LR90,Site & Centre Management,420,Electricity,218919,16/10/2017,16/10/2017,CR407130,SWALEC,151678759," 2,644.48 "
http://statistics.data.gov.uk/id/local-authority/12UE,Huntingdonshire District Council,LK90,Site & Centre Management,420,Electricity,218927,12/10/2017,16/10/2017,CR455940,HAVEN POWER LTD,65922," 2,687.90 "
http://statistics.data.gov.uk/id/local-authority/12UE,Huntingdonshire District Council,HF01,Mobile Home Park,420,Electricity,218916,16/10/2017,16/10/2017,CR407130,SWALEC,481686634," 2,883.08 "
http://statistics.data.gov.uk/id/local-authority/12UE,Huntingdonshire District Council,LP90,Site & Centre Management,420,Electricity,218930,12/10/2017,16/10/2017,CR455940,HAVEN POWER LTD,65916," 3,160.71 "
http://statistics.data.gov.uk/id/local-authority/12UE,Huntingdonshire District Council,MB41,Eastfield House,420,Electricity,218929,12/10/2017,16/10/2017,CR455940,HAVEN POWER LTD,65924," 3,268.14 "
http://statistics.data.gov.uk/id/local-authority/12UE,Huntingdonshire District Council,LQ90,Site & Centre Management,420,Electricity,218928,12/10/2017,16/10/2017,CR455940,HAVEN POWER LTD,65919," 5,289.69 "
http://statistics.data.gov.uk/id/local-authority/12UE,Huntingdonshire District Council,LN01,Swimming,420,Electricity,218931,12/10/2017,16/10/2017,CR455940,HAVEN POWER LTD,65914," 7,710.29 "
http://statistics.data.gov.uk/id/local-authority/12UE,Huntingdonshire District Council,MB01,Pathfinder House,420,Electricity,218932,12/10/2017,16/10/2017,CR455940,HAVEN POWER LTD,65912," 8,639.14 "
http://statistics.data.gov.uk/id/local-authority/12UE,Huntingdonshire District Council,LK90,Site & Centre Management,421,Gas,218907,16/10/2017,16/10/2017,CR416430,E-ON ENERGY,12489089510, 258.67 
http://statistics.data.gov.uk/id/local-authority/12UE,Huntingdonshire District Council,MB01,Pathfinder House,421,Gas,218911,16/10/2017,16/10/2017,CR416430,E-ON ENERGY,13313569100, 386.10 
http://statistics.data.gov.uk/id/local-authority/12UE,Huntingdonshire District Council,LP90,Site & Centre Management,421,Gas,218906,16/10/2017,16/10/2017,CR416430,E-ON ENERGY,12489088970, 389.66 
http://statistics.data.gov.uk/id/local-authority/12UE,Huntingdonshire District Council,LS90,Site & Centre Management,421,Gas,218905,16/10/2017,16/10/2017,CR416430,E-ON ENERGY,12489088700, 758.57 
http://statistics.data.gov.uk/id/local-authority/12UE,Huntingdonshire District Council,LR90,Site & Centre Management,421,Gas,218908,16/10/2017,16/10/2017,CR416430,E-ON ENERGY,12489090790, 759.41 
http://statistics.data.gov.uk/id/local-authority/12UE,Huntingdonshire District Council,LP01,Swimming,421,Gas,218902,16/10/2017,16/10/2017,CR416430,E-ON ENERGY,12489088110," 1,624.37 "
http://statistics.data.gov.uk/id/local-authority/12UE,Huntingdonshire District Council,LN01,Swimming,421,Gas,218903,16/10/2017,16/10/2017,CR416430,E-ON ENERGY,12489088380," 2,268.46 "
http://statistics.data.gov.uk/id/local-authority/12UE,Huntingdonshire District Council,LQ90,Site & Centre Management,421,Gas,218910,16/10/2017,16/10/2017,CR416430,E-ON ENERGY,12489090950," 3,164.51 "
http://statistics.data.gov.uk/id/local-authority/12UE,Huntingdonshire District Council,LN01,Swimming,432,Water & Sewerage,218145,17/10/2017,18/10/2017,CR000071,"WAVE, ANGLIAN WATER BUSINESS",292955401, 359.90 
http://statistics.data.gov.uk/id/local-authority/12UE,Huntingdonshire District Council,LS90,Site & Centre Management,432,Water & Sewerage,218980,17/10/2017,18/10/2017,CR000071,"WAVE, ANGLIAN WATER BUSINESS",8359406996," 1,001.98 "
http://statistics.data.gov.uk/id/local-authority/12UE,Huntingdonshire District Council,LS90,Site & Centre Management,432,Water & Sewerage,218484,17/10/2017,18/10/2017,CR000071,"WAVE, ANGLIAN WATER BUSINESS",286300002," 1,048.67 "
http://statistics.data.gov.uk/id/local-authority/12UE,Huntingdonshire District Council,LK90,Site & Centre Management,432,Water & Sewerage,219565,26/10/2017,26/10/2017,CR000172,CAMBRIDGE WATER PLC,MC15365879/01," 1,994.50 "
http://statistics.data.gov.uk/id/local-authority/12UE,Huntingdonshire District Council,HF01,Mobile Home Park,432,Water & Sewerage,218607,12/10/2017,12/10/2017,CR000071,"WAVE, ANGLIAN WATER BUSINESS",8057410914," 14,960.05 "
http://statistics.data.gov.uk/id/local-authority/12UE,Huntingdonshire District Council,TC46,Huntingdon Multi-Storey,440,Building Cleaning,218985,17/10/2017,18/10/2017,CR406985,ECOCLEEN SERVICES LIMITED,INV565202, 343.53 
http://statistics.data.gov.uk/id/local-authority/12UE,Huntingdonshire District Council,LD20,H'Brooke Countryside Centre,440,Building Cleaning,219514,25/10/2017,25/10/2017,CR406985,ECOCLEEN SERVICES LIMITED,565109, 434.69 
http://statistics.data.gov.uk/id/local-authority/12UE,Huntingdonshire District Council,TB02,St Ives Bus Station,440,Building Cleaning,616882,26/10/2017,26/10/2017,CR000701,ST IVES TOWN COUNCIL,1658, 678.45 
http://statistics.data.gov.uk/id/local-authority/12UE,Huntingdonshire District Council,TB01,Huntingdon Bus Station,440,Building Cleaning,218975,17/10/2017,18/10/2017,CR415822,BEEBYS LIMITED,59756," 1,018.31 "
http://statistics.data.gov.uk/id/local-authority/12UE,Huntingdonshire District Council,TB10,Bus Shelters,440,Building Cleaning,218292,04/10/2017,04/10/2017,CR132710,PRIMESIGHT  LTD,2017/086," 1,158.40 "
http://statistics.data.gov.uk/id/local-authority/12UE,Huntingdonshire District Council,LN90,Site & Centre Management,443,Cleaning Materials,218073,04/10/2017,05/10/2017,CR033423,MASKEARAID LTD,63087, 292.60 
http://statistics.data.gov.uk/id/local-authority/12UE,Huntingdonshire District Council,MB01,Pathfinder House,443,Cleaning Materials,218993,18/10/2017,19/10/2017,CR033423,MASKEARAID LTD,63190, 757.58 
http://statistics.data.gov.uk/id/local-authority/12UE,Huntingdonshire District Council,LP90,Site & Centre Management,450,Fire & Security,219103,18/10/2017,19/10/2017,CR003146,B S GRAVES ELECTRICAL LTD,25026, 301.25 
http://statistics.data.gov.uk/id/local-authority/12UE,Huntingdonshire District Council,LK90,Site & Centre Management,450,Fire & Security,218631,11/10/2017,12/10/2017,CR406826,HONEYWELL NOVAR SYSTEMS,7080646753, 331.25 
http://statistics.data.gov.uk/id/local-authority/12UE,Huntingdonshire District Council,LN90,Site & Centre Management,450,Fire & Security,219095,18/10/2017,19/10/2017,CR478924,CHUBB FIRE AND SECURITY LTD,6604097, 358.78 
http://statistics.data.gov.uk/id/local-authority/12UE,Huntingdonshire District Council,LQ90,Site & Centre Management,450,Fire & Security,218222,04/10/2017,05/10/2017,CR406826,HONEYWELL NOVAR SYSTEMS,7080647408, 534.07 
http://statistics.data.gov.uk/id/local-authority/12UE,Huntingdonshire District Council,L274,Ol St Ives Burgess Hall,450,Fire & Security,219466,31/10/2017,01/11/2017,CR406826,HONEYWELL NOVAR SYSTEMS,7080650542, 902.42 
http://statistics.data.gov.uk/id/local-authority/12UE,Huntingdonshire District Council,L274,Ol St Ives Burgess Hall,450,Fire & Security,219465,31/10/2017,01/11/2017,CR406826,HONEYWELL NOVAR SYSTEMS,7080650541," 1,939.35 "
http://statistics.data.gov.uk/id/local-authority/12UE,Huntingdonshire District Council,LQ27,Burgess Bar,500,Equipment,217751,23/10/2017,23/10/2017,CR412311,NISBETS,,"-2,111.20 "
http://statistics.data.gov.uk/id/local-authority/12UE,Huntingdonshire District Council,EG06,Grounds Maintenance,500,Equipment,208420,01/10/2017,04/12/2017,CR001345,RIGBY TAYLOR LTD,,-750.00 
http://statistics.data.gov.uk/id/local-authority/12UE,Huntingdonshire District Council,EG06,Grounds Maintenance,500,Equipment,208616,01/10/2017,04/12/2017,CR000430,ARTHUR IBBETT LTD,,-650.00 
http://statistics.data.gov.uk/id/local-authority/12UE,Huntingdonshire District Council,EG06,Grounds Maintenance,500,Equipment,217702,01/10/2017,04/12/2017,CR422159,GROUNDSMAN,,-604.51 
http://statistics.data.gov.uk/id/local-authority/12UE,Huntingdonshire District Council,EG06,Grounds Maintenance,500,Equipment,214908,01/10/2017,04/12/2017,CR030353,D & H SIGN & DISPLAY SERVICES,,-540.00 
http://statistics.data.gov.uk/id/local-authority/12UE,Huntingdonshire District Council,LQ10,Indoor Sports,500,Equipment,219834,31/10/2017,01/11/2017,CR413161,JORDAN FITNESS,226143, 252.22 
http://statistics.data.gov.uk/id/local-authority/12UE,Huntingdonshire District Council,LR10,Indoor Sports,500,Equipment,218744,18/10/2017,19/10/2017,CR407014,PHYSICAL COMPANY,PH192891, 282.00 
http://statistics.data.gov.uk/id/local-authority/12UE,Huntingdonshire District Council,EG05,Arboricultural Team,500,Equipment,217661,03/10/2017,05/10/2017,CR477803,ASHTEAD PLANT HIRE COMPANY LTD,15904751, 310.21 
http://statistics.data.gov.uk/id/local-authority/12UE,Huntingdonshire District Council,LQ27,Burgess Bar,500,Equipment,219871,31/10/2017,01/11/2017,CR478074,DCRS LTD,220476, 314.00 
http://statistics.data.gov.uk/id/local-authority/12UE,Huntingdonshire District Council,MB41,Eastfield House,500,Equipment,219423,25/10/2017,25/10/2017,CR000141,A C COMMERCIALS,277508I, 399.95 
http://statistics.data.gov.uk/id/local-authority/12UE,Huntingdonshire District Council,GM14,Ph & Hc Vehicles,500,Equipment,219797,16/10/2017,30/10/2017,CR422704,XLPRESS LTD,16818, 440.00 
http://statistics.data.gov.uk/id/local-authority/12UE,Huntingdonshire District Council,LQ27,Burgess Bar,500,Equipment,218699,18/10/2017,19/10/2017,CR027611,BOOKER CASH AND CARRY,2104198648, 474.29 
http://statistics.data.gov.uk/id/local-authority/12UE,Huntingdonshire District Council,L259,Ramsey L C - Gen Improve (Cs),500,Equipment,219463,31/10/2017,01/11/2017,CR028041,ROGER WILSON ELECTRONICS,9886, 499.00 
http://statistics.data.gov.uk/id/local-authority/12UE,Huntingdonshire District Council,MB01,Pathfinder House,500,Equipment,218492,09/10/2017,12/10/2017,CR477443,HYGIENE SOLUTIONS,31627, 524.17 
http://statistics.data.gov.uk/id/local-authority/12UE,Huntingdonshire District Council,EG05,Arboricultural Team,500,Equipment,208616,01/10/2017,04/12/2017,CR000430,ARTHUR IBBETT LTD,, 650.00 
http://statistics.data.gov.uk/id/local-authority/12UE,Huntingdonshire District Council,LQ90,Site & Centre Management,500,Equipment,219464,31/10/2017,01/11/2017,CR028041,ROGER WILSON ELECTRONICS,9881, 695.00 
http://statistics.data.gov.uk/id/local-authority/12UE,Huntingdonshire District Council,LN02,Impressions,500,Equipment,219430,24/10/2017,26/10/2017,CR413161,JORDAN FITNESS,225886, 916.39 
http://statistics.data.gov.uk/id/local-authority/12UE,Huntingdonshire District Council,MP02,"Mfds -Local Print, Scan & Copy",500,Equipment,218098,02/10/2017,02/10/2017,CR480830,AMALGAMATED COMPUTER SUPPLIES,SINV00399738," 1,000.00 "
http://statistics.data.gov.uk/id/local-authority/12UE,Huntingdonshire District Council,LN29,Outdoor Sports,500,Equipment,218944,16/10/2017,16/10/2017,CR424976,NET WORLD SPORTS LTD,TC131017-4," 1,519.77 "
http://statistics.data.gov.uk/id/local-authority/12UE,Huntingdonshire District Council,L274,Ol St Ives Burgess Hall,500,Equipment,217751,23/10/2017,23/10/2017,CR412311,NISBETS,," 2,111.20 "
http://statistics.data.gov.uk/id/local-authority/12UE,Huntingdonshire District Council,LN90,Site & Centre Management,507,Equipment Hire,217163,04/10/2017,05/10/2017,CR032018,PHS GROUP LTD,65228764, 655.96 
http://statistics.data.gov.uk/id/local-authority/12UE,Huntingdonshire District Council,KC80,Cctv Shared Service Hosting,511,Equipment Maintenance,218231,03/10/2017,05/10/2017,CR027775,QUADRANT SECURITY GROUP,SIN084641, 261.00 
http://statistics.data.gov.uk/id/local-authority/12UE,Huntingdonshire District Council,LP02,Impressions,511,Equipment Maintenance,219557,24/10/2017,26/10/2017,CR415606,GYM REPAIR SERVICES,24485, 325.00 
http://statistics.data.gov.uk/id/local-authority/12UE,Huntingdonshire District Council,MU95,Vehicle Maintenance,511,Equipment Maintenance,218992,18/10/2017,19/10/2017,CR478577,MERRIDALE MIS FUEL MONITORING LTD,39408, 336.56 
http://statistics.data.gov.uk/id/local-authority/12UE,Huntingdonshire District Council,LN90,Site & Centre Management,511,Equipment Maintenance,218108,04/10/2017,05/10/2017,CR422869,LEISURE INNOVATIONS LIMITED,917042, 355.00 
http://statistics.data.gov.uk/id/local-authority/12UE,Huntingdonshire District Council,LP90,Site & Centre Management,511,Equipment Maintenance,219402,24/10/2017,26/10/2017,CR416900,AIRQUEE LTD,IN21521, 475.00 
http://statistics.data.gov.uk/id/local-authority/12UE,Huntingdonshire District Council,LR90,Site & Centre Management,511,Equipment Maintenance,218326,11/10/2017,12/10/2017,CR400863,ROTOWASH UK LTD,8898032, 480.15 
http://statistics.data.gov.uk/id/local-authority/12UE,Huntingdonshire District Council,MP01,Printing,511,Equipment Maintenance,218900,13/10/2017,13/10/2017,CR409013,CANON UK LTD,9195842," 1,567.50 "
http://statistics.data.gov.uk/id/local-authority/12UE,Huntingdonshire District Council,MP01,Printing,511,Equipment Maintenance,218527,09/10/2017,10/10/2017,CR409013,CANON UK LTD,9194784," 1,905.15 "
http://statistics.data.gov.uk/id/local-authority/12UE,Huntingdonshire District Council,KC80,Cctv Shared Service Hosting,511,Equipment Maintenance,219152,19/10/2017,19/10/2017,CR027775,QUADRANT SECURITY GROUP,SIN084820," 2,367.36 "
http://statistics.data.gov.uk/id/local-authority/12UE,Huntingdonshire District Council,KC80,Cctv Shared Service Hosting,511,Equipment Maintenance,219154,19/10/2017,19/10/2017,CR027775,QUADRANT SECURITY GROUP,SIN084821," 3,000.50 "
http://statistics.data.gov.uk/id/local-authority/12UE,Huntingdonshire District Council,MP01,Printing,511,Equipment Maintenance,218650,13/10/2017,13/10/2017,CR409013,CANON UK LTD,9195066," 3,590.98 "
http://statistics.data.gov.uk/id/local-authority/12UE,Huntingdonshire District Council,LS02,Impressions,511,Equipment Maintenance,218572,10/10/2017,10/10/2017,CR033037,TECHNOGYM UK LTD,17011394," 4,145.37 "
http://statistics.data.gov.uk/id/local-authority/12UE,Huntingdonshire District Council,LR02,Impressions,511,Equipment Maintenance,218569,10/10/2017,10/10/2017,CR033037,TECHNOGYM UK LTD,17077391," 5,695.11 "
http://statistics.data.gov.uk/id/local-authority/12UE,Huntingdonshire District Council,LQ02,Impressions,511,Equipment Maintenance,218571,10/10/2017,10/10/2017,CR033037,TECHNOGYM UK LTD,17011392," 13,201.87 "
http://statistics.data.gov.uk/id/local-authority/12UE,Huntingdonshire District Council,LN02,Impressions,511,Equipment Maintenance,218574,10/10/2017,10/10/2017,CR033037,TECHNOGYM UK LTD,17011393," 16,446.19 "
http://statistics.data.gov.uk/id/local-authority/12UE,Huntingdonshire District Council,MD21,Ict Capital Projects (Interim),511,Equipment Maintenance,218311,05/10/2017,05/10/2017,CR479055,PLAYFORDS LTD,14632," 28,659.08 "
http://statistics.data.gov.uk/id/local-authority/12UE,Huntingdonshire District Council,TC90,Car Parks Operational Mgt,522,Car Park Machines,218948,25/10/2017,25/10/2017,CR401137,CALE ACCESS UK LTD,127085, 810.00 
http://statistics.data.gov.uk/id/local-authority/12UE,Huntingdonshire District Council,TC90,Car Parks Operational Mgt,522,Car Park Machines,218234,03/10/2017,05/10/2017,CR401137,CALE ACCESS UK LTD,117115," 3,008.61 "
http://statistics.data.gov.uk/id/local-authority/12UE,Huntingdonshire District Council,TC90,Car Parks Operational Mgt,522,Car Park Machines,218491,10/10/2017,12/10/2017,CR401137,CALE ACCESS UK LTD,127156," 3,161.06 "
http://statistics.data.gov.uk/id/local-authority/12UE,Huntingdonshire District Council,E304,Wheeled Bins,525,Recycling Bins,219065,19/10/2017,19/10/2017,CR407190,SSI SCHAEFER LTD,SI34078, 440.00 
http://statistics.data.gov.uk/id/local-authority/12UE,Huntingdonshire District Council,E304,Wheeled Bins,525,Recycling Bins,217679,18/10/2017,19/10/2017,CR004818,EGBERT H TAYLOR AND CO LTD,INV000007378," 8,439.60 "
http://statistics.data.gov.uk/id/local-authority/12UE,Huntingdonshire District Council,E304,Wheeled Bins,525,Recycling Bins,219064,19/10/2017,19/10/2017,CR407190,SSI SCHAEFER LTD,SI34495," 13,395.60 "
http://statistics.data.gov.uk/id/local-authority/12UE,Huntingdonshire District Council,EG06,Grounds Maintenance,550,Materials,216263,01/10/2017,04/12/2017,CR001345,RIGBY TAYLOR LTD,,-750.00 
http://statistics.data.gov.uk/id/local-authority/12UE,Huntingdonshire District Council,EG06,Grounds Maintenance,550,Materials,219168,24/10/2017,04/12/2017,CR001345,RIGBY TAYLOR LTD,,-750.00 
http://statistics.data.gov.uk/id/local-authority/12UE,Huntingdonshire District Council,EG06,Grounds Maintenance,550,Materials,214467,01/10/2017,04/12/2017,CR424081,PROGREENWEED CONTROL SOLUTIONS LTD,,-612.00 
http://statistics.data.gov.uk/id/local-authority/12UE,Huntingdonshire District Council,MU95,Vehicle Maintenance,550,Materials,218536,24/10/2017,25/10/2017,CR455479,TRINITY ENGINEERING & COMPONENT SUPPLIES LTD,38375, 282.41 
http://statistics.data.gov.uk/id/local-authority/12UE,Huntingdonshire District Council,LQ21,Burgess Hall,550,Materials,218724,18/10/2017,19/10/2017,CR028041,ROGER WILSON ELECTRONICS,9870, 305.76 
http://statistics.data.gov.uk/id/local-authority/12UE,Huntingdonshire District Council,LN01,Swimming,550,Materials,218591,11/10/2017,12/10/2017,CR401615,RLSS DIRECT,SI493755-1, 309.00 
http://statistics.data.gov.uk/id/local-authority/12UE,Huntingdonshire District Council,MH20,Health & Safety Contract,550,Materials,219821,31/10/2017,01/11/2017,CR401615,RLSS DIRECT,S1496916-1, 319.00 
http://statistics.data.gov.uk/id/local-authority/12UE,Huntingdonshire District Council,MH20,Health & Safety Contract,550,Materials,219437,24/10/2017,26/10/2017,CR401615,RLSS DIRECT,S1496527-1, 563.55 
http://statistics.data.gov.uk/id/local-authority/12UE,Huntingdonshire District Council,LS90,Site & Centre Management,550,Materials,219107,18/10/2017,19/10/2017,CR401615,RLSS DIRECT,SI495301-1, 652.00 
http://statistics.data.gov.uk/id/local-authority/12UE,Huntingdonshire District Council,LE01,Paxton Pits,550,Materials,219521,25/10/2017,25/10/2017,CR482513,HUNTINGDON TIMBER SUPPLIES,179455, 724.50 
http://statistics.data.gov.uk/id/local-authority/12UE,Huntingdonshire District Council,EG06,Grounds Maintenance,550,Materials,219168,24/10/2017,25/10/2017,CR001345,RIGBY TAYLOR LTD,RSIN0239857, 750.00 
http://statistics.data.gov.uk/id/local-authority/12UE,Huntingdonshire District Council,EG06,Grounds Maintenance,551,Chemicals,214467,01/10/2017,04/12/2017,CR424081,PROGREENWEED CONTROL SOLUTIONS LTD,, 612.00 
http://statistics.data.gov.uk/id/local-authority/12UE,Huntingdonshire District Council,LN01,Swimming,551,Chemicals,218273,18/10/2017,19/10/2017,CR015017,BRENNTAG UK LTD,38SI3856406, 736.62 
http://statistics.data.gov.uk/id/local-authority/12UE,Huntingdonshire District Council,EG06,Grounds Maintenance,551,Chemicals,208420,01/10/2017,04/12/2017,CR001345,RIGBY TAYLOR LTD,, 750.00 
http://statistics.data.gov.uk/id/local-authority/12UE,Huntingdonshire District Council,EG06,Grounds Maintenance,551,Chemicals,216263,01/10/2017,04/12/2017,CR001345,RIGBY TAYLOR LTD,, 750.00 
http://statistics.data.gov.uk/id/local-authority/12UE,Huntingdonshire District Council,EG06,Grounds Maintenance,551,Chemicals,219168,24/10/2017,04/12/2017,CR001345,RIGBY TAYLOR LTD,, 750.00 
http://statistics.data.gov.uk/id/local-authority/12UE,Huntingdonshire District Council,LQ01,Swimming,551,Chemicals,219395,24/10/2017,26/10/2017,CR015017,BRENNTAG UK LTD,38SI 3856823, 813.62 
http://statistics.data.gov.uk/id/local-authority/12UE,Huntingdonshire District Council,EG05,Arboricultural Team,556,Plants And Seeds,214954,01/10/2017,04/12/2017,CR404318,PERSONAL DATA REDACTED,,"-9,031.55 "
http://statistics.data.gov.uk/id/local-authority/12UE,Huntingdonshire District Council,EG06,Grounds Maintenance,556,Plants And Seeds,214954,01/10/2017,04/12/2017,CR404318,PERSONAL DATA REDACTED,," 9,031.55 "
http://statistics.data.gov.uk/id/local-authority/12UE,Huntingdonshire District Council,LQ27,Burgess Bar,558,Bar Provisions,218318,05/10/2017,05/10/2017,CR422253,OAKHAM ALES,S119227A,-891.20 
http://statistics.data.gov.uk/id/local-authority/12UE,Huntingdonshire District Council,LQ20,Hospitality,558,Bar Provisions,217310,01/10/2017,08/12/2017,CR422660,LUCOZADE RIBENA SUNTORY LTD,,-271.39 
http://statistics.data.gov.uk/id/local-authority/12UE,Huntingdonshire District Council,LK20,Hospitality,558,Bar Provisions,219844,31/10/2017,01/11/2017,CR422174,LACONS,689684, 251.95 
http://statistics.data.gov.uk/id/local-authority/12UE,Huntingdonshire District Council,LK20,Hospitality,558,Bar Provisions,218583,11/10/2017,12/10/2017,CR422174,LACONS,686479, 279.48 
http://statistics.data.gov.uk/id/local-authority/12UE,Huntingdonshire District Council,LK20,Hospitality,558,Bar Provisions,219452,31/10/2017,01/11/2017,CR422174,LACONS,688622, 301.30 
http://statistics.data.gov.uk/id/local-authority/12UE,Huntingdonshire District Council,LQ27,Burgess Bar,558,Bar Provisions,218139,04/10/2017,05/10/2017,CR422174,LACONS,685146, 355.43 
http://statistics.data.gov.uk/id/local-authority/12UE,Huntingdonshire District Council,LK20,Hospitality,558,Bar Provisions,218142,04/10/2017,05/10/2017,CR422174,LACONS,685446, 384.01 
http://statistics.data.gov.uk/id/local-authority/12UE,Huntingdonshire District Council,LQ27,Burgess Bar,558,Bar Provisions,219118,18/10/2017,19/10/2017,CR422253,OAKHAM ALES,I174463, 473.34 
http://statistics.data.gov.uk/id/local-authority/12UE,Huntingdonshire District Council,LQ27,Burgess Bar,558,Bar Provisions,218890,18/10/2017,19/10/2017,CR422253,OAKHAM ALES,I174191, 751.73 
http://statistics.data.gov.uk/id/local-authority/12UE,Huntingdonshire District Council,LQ27,Burgess Bar,558,Bar Provisions,218507,11/10/2017,12/10/2017,CR422174,LACONS,686254," 1,029.31 "
http://statistics.data.gov.uk/id/local-authority/12UE,Huntingdonshire District Council,LQ27,Burgess Bar,558,Bar Provisions,218277,04/10/2017,05/10/2017,CR422253,OAKHAM ALES,I173583," 1,194.24 "
http://statistics.data.gov.uk/id/local-authority/12UE,Huntingdonshire District Council,LQ27,Burgess Bar,558,Bar Provisions,218914,18/10/2017,19/10/2017,CR422174,LACONS,687508," 1,344.37 "
http://statistics.data.gov.uk/id/local-authority/12UE,Huntingdonshire District Council,LQ27,Burgess Bar,558,Bar Provisions,218140,04/10/2017,05/10/2017,CR422174,LACONS,685034," 2,798.60 "
http://statistics.data.gov.uk/id/local-authority/12UE,Huntingdonshire District Council,LQ21,Burgess Hall,558,Bar Provisions,218176,04/10/2017,05/10/2017,CR422174,LACONS,684953," 3,910.72 "
http://statistics.data.gov.uk/id/local-authority/12UE,Huntingdonshire District Council,LD40,Hinchingbrooke Park Cafe,559,Catering Materials,218728,12/10/2017,12/10/2017,CR411339,KING BROS,927732, 274.43 
http://statistics.data.gov.uk/id/local-authority/12UE,Huntingdonshire District Council,LD40,Hinchingbrooke Park Cafe,559,Catering Materials,219533,25/10/2017,25/10/2017,CR402112,COOLER AID LTD,929521, 335.70 
http://statistics.data.gov.uk/id/local-authority/12UE,Huntingdonshire District Council,LQ20,Hospitality,559,Catering Materials,218584,11/10/2017,12/10/2017,CR455958,SLUSH PUPPIE LTD,INV102925, 341.55 
http://statistics.data.gov.uk/id/local-authority/12UE,Huntingdonshire District Council,LD40,Hinchingbrooke Park Cafe,559,Catering Materials,218723,12/10/2017,12/10/2017,CR411339,KING BROS,926199, 343.44 
http://statistics.data.gov.uk/id/local-authority/12UE,Huntingdonshire District Council,LQ27,Burgess Bar,559,Catering Materials,219569,31/10/2017,01/11/2017,CR033415,SOUTH LINCS FOOD SERVICE,394947, 429.56 
http://statistics.data.gov.uk/id/local-authority/12UE,Huntingdonshire District Council,LQ27,Burgess Bar,559,Catering Materials,218478,11/10/2017,12/10/2017,CR033415,SOUTH LINCS FOOD SERVICE,386386, 447.38 
http://statistics.data.gov.uk/id/local-authority/12UE,Huntingdonshire District Council,LQ20,Hospitality,560,Vending Materials,218578,11/10/2017,12/10/2017,CR478090,SNACKLINE DIRECT LTD,85303, 262.28 
http://statistics.data.gov.uk/id/local-authority/12UE,Huntingdonshire District Council,LP20,Hospitality,560,Vending Materials,219436,31/10/2017,01/11/2017,CR478090,SNACKLINE DIRECT LTD,85845, 265.45 
http://statistics.data.gov.uk/id/local-authority/12UE,Huntingdonshire District Council,LQ20,Hospitality,560,Vending Materials,217310,01/10/2017,08/12/2017,CR422660,LUCOZADE RIBENA SUNTORY LTD,, 271.39 
http://statistics.data.gov.uk/id/local-authority/12UE,Huntingdonshire District Council,LQ20,Hospitality,560,Vending Materials,219813,31/10/2017,01/11/2017,CR478090,SNACKLINE DIRECT LTD,86015, 274.57 
http://statistics.data.gov.uk/id/local-authority/12UE,Huntingdonshire District Council,LN20,Hospitality,560,Vending Materials,218886,18/10/2017,19/10/2017,CR478090,SNACKLINE DIRECT LTD,85510, 308.60 
http://statistics.data.gov.uk/id/local-authority/12UE,Huntingdonshire District Council,LN20,Hospitality,560,Vending Materials,218740,12/10/2017,12/10/2017,CR478090,SNACKLINE DIRECT LTD,84113, 390.27 
http://statistics.data.gov.uk/id/local-authority/12UE,Huntingdonshire District Council,LN20,Hospitality,560,Vending Materials,218109,04/10/2017,05/10/2017,CR478090,SNACKLINE DIRECT LTD,84231, 437.25 
http://statistics.data.gov.uk/id/local-authority/12UE,Huntingdonshire District Council,MP01,Printing,562,Paper,218511,10/10/2017,10/10/2017,CR413516,CLANPRESS KING'S LYNN LTD,41426, 258.00 
http://statistics.data.gov.uk/id/local-authority/12UE,Huntingdonshire District Council,MP01,Printing,562,Paper,219753,30/10/2017,30/10/2017,CR424769,PREMIER PAPER GROUP LTD,8955721, 401.00 
http://statistics.data.gov.uk/id/local-authority/12UE,Huntingdonshire District Council,MP01,Printing,562,Paper,218565,10/10/2017,10/10/2017,CR424769,PREMIER PAPER GROUP LTD,8933009," 1,359.52 "
http://statistics.data.gov.uk/id/local-authority/12UE,Huntingdonshire District Council,GM14,Ph & Hc Vehicles,564,Licence Plates,219564,23/10/2017,26/10/2017,CR410378,MOGO UK,T27646," 1,512.00 "
http://statistics.data.gov.uk/id/local-authority/12UE,Huntingdonshire District Council,LP90,Site & Centre Management,570,Materials For Resale,218506,18/10/2017,19/10/2017,CR424813,SPORTMAX,102454, 313.85 
http://statistics.data.gov.uk/id/local-authority/12UE,Huntingdonshire District Council,LN90,Site & Centre Management,570,Materials For Resale,218072,04/10/2017,05/10/2017,CR028595,J P LENNARD LTD,866231, 320.63 
http://statistics.data.gov.uk/id/local-authority/12UE,Huntingdonshire District Council,LQ90,Site & Centre Management,570,Materials For Resale,219819,31/10/2017,01/11/2017,CR424813,SPORTMAX,102736, 715.90 
http://statistics.data.gov.uk/id/local-authority/12UE,Huntingdonshire District Council,LN90,Site & Centre Management,570,Materials For Resale,219808,31/10/2017,01/11/2017,CR424813,SPORTMAX,102443, 720.40 
http://statistics.data.gov.uk/id/local-authority/12UE,Huntingdonshire District Council,LQ90,Site & Centre Management,570,Materials For Resale,218481,11/10/2017,12/10/2017,CR424813,SPORTMAX,102435, 839.55 
http://statistics.data.gov.uk/id/local-authority/12UE,Huntingdonshire District Council,N002,Vehicles & Plant,600,Vehicles Purchased,219472,25/10/2017,25/10/2017,CR424989,DC COMMERCIALS (UK) LTD,4404,-700.00 
http://statistics.data.gov.uk/id/local-authority/12UE,Huntingdonshire District Council,N002,Vehicles & Plant,600,Vehicles Purchased,219536,25/10/2017,25/10/2017,CR424060,MARSHALL OF KNEBWORTH,342015, 295.00 
http://statistics.data.gov.uk/id/local-authority/12UE,Huntingdonshire District Council,N002,Vehicles & Plant,600,Vehicles Purchased,219537,25/10/2017,25/10/2017,CR424060,MARSHALL OF KNEBWORTH,324014, 295.00 
http://statistics.data.gov.uk/id/local-authority/12UE,Huntingdonshire District Council,N002,Vehicles & Plant,600,Vehicles Purchased,219472,25/10/2017,25/10/2017,CR424989,DC COMMERCIALS (UK) LTD,4404," 19,500.00 "
http://statistics.data.gov.uk/id/local-authority/12UE,Huntingdonshire District Council,N002,Vehicles & Plant,600,Vehicles Purchased,219536,25/10/2017,25/10/2017,CR424060,MARSHALL OF KNEBWORTH,342015," 27,381.30 "
http://statistics.data.gov.uk/id/local-authority/12UE,Huntingdonshire District Council,N002,Vehicles & Plant,600,Vehicles Purchased,219537,25/10/2017,25/10/2017,CR424060,MARSHALL OF KNEBWORTH,324014," 27,381.30 "
http://statistics.data.gov.uk/id/local-authority/12UE,Huntingdonshire District Council,N002,Vehicles & Plant,600,Vehicles Purchased,218137,09/10/2017,12/10/2017,CR000200,DENNIS EAGLE LTD,311143," 165,783.00 "
http://statistics.data.gov.uk/id/local-authority/12UE,Huntingdonshire District Council,N002,Vehicles & Plant,600,Vehicles Purchased,218141,05/10/2017,06/10/2017,CR000200,DENNIS EAGLE LTD,311140," 165,783.00 "
http://statistics.data.gov.uk/id/local-authority/12UE,Huntingdonshire District Council,N002,Vehicles & Plant,600,Vehicles Purchased,218138,09/10/2017,12/10/2017,CR000200,DENNIS EAGLE LTD,311142," 165,783.00 "
http://statistics.data.gov.uk/id/local-authority/12UE,Huntingdonshire District Council,ER01,Domestic Waste Collection,607,Vehicle Hire,218124,03/10/2017,05/10/2017,CR415496,FIVEWAYS MUNICIPAL VEHICLE HIRE LTD,80726, 340.00 
http://statistics.data.gov.uk/id/local-authority/12UE,Huntingdonshire District Council,EG06,Grounds Maintenance,607,Vehicle Hire,219174,24/10/2017,25/10/2017,CR416566,SHB HIRE LTD,10872344, 456.23 
http://statistics.data.gov.uk/id/local-authority/12UE,Huntingdonshire District Council,ER01,Domestic Waste Collection,607,Vehicle Hire,218126,09/10/2017,12/10/2017,CR415496,FIVEWAYS MUNICIPAL VEHICLE HIRE LTD,80728, 510.00 
http://statistics.data.gov.uk/id/local-authority/12UE,Huntingdonshire District Council,EG06,Grounds Maintenance,607,Vehicle Hire,218567,12/10/2017,12/10/2017,CR416566,SHB HIRE LTD,10865977, 642.84 
http://statistics.data.gov.uk/id/local-authority/12UE,Huntingdonshire District Council,EG06,Grounds Maintenance,607,Vehicle Hire,218573,12/10/2017,12/10/2017,CR416566,SHB HIRE LTD,10865980, 642.84 
http://statistics.data.gov.uk/id/local-authority/12UE,Huntingdonshire District Council,ER01,Domestic Waste Collection,607,Vehicle Hire,218566,12/10/2017,12/10/2017,CR416566,SHB HIRE LTD,10865976, 697.50 
http://statistics.data.gov.uk/id/local-authority/12UE,Huntingdonshire District Council,EG06,Grounds Maintenance,607,Vehicle Hire,218568,12/10/2017,12/10/2017,CR416566,SHB HIRE LTD,10865978, 712.50 
http://statistics.data.gov.uk/id/local-authority/12UE,Huntingdonshire District Council,ES01,Street Cleansing,607,Vehicle Hire,218279,12/10/2017,12/10/2017,CR424875,LONGMARSH LTD,7144565, 840.00 
http://statistics.data.gov.uk/id/local-authority/12UE,Huntingdonshire District Council,ES01,Street Cleansing,607,Vehicle Hire,218281,12/10/2017,12/10/2017,CR424875,LONGMARSH LTD,7144566, 840.00 
http://statistics.data.gov.uk/id/local-authority/12UE,Huntingdonshire District Council,ER01,Domestic Waste Collection,607,Vehicle Hire,216913,03/10/2017,05/10/2017,CR415496,FIVEWAYS MUNICIPAL VEHICLE HIRE LTD,80278, 850.00 
http://statistics.data.gov.uk/id/local-authority/12UE,Huntingdonshire District Council,ER01,Domestic Waste Collection,607,Vehicle Hire,218981,17/10/2017,18/10/2017,CR415496,FIVEWAYS MUNICIPAL VEHICLE HIRE LTD,80786, 850.00 
http://statistics.data.gov.uk/id/local-authority/12UE,Huntingdonshire District Council,ER01,Domestic Waste Collection,607,Vehicle Hire,218575,12/10/2017,12/10/2017,CR416566,SHB HIRE LTD,10865981, 945.00 
http://statistics.data.gov.uk/id/local-authority/12UE,Huntingdonshire District Council,ES01,Street Cleansing,607,Vehicle Hire,218570,12/10/2017,12/10/2017,CR416566,SHB HIRE LTD,10865979, 945.00 
http://statistics.data.gov.uk/id/local-authority/12UE,Huntingdonshire District Council,ES01,Street Cleansing,607,Vehicle Hire,219319,24/10/2017,25/10/2017,CR455755,G&C COACHWORKS LTD,9970, 964.63 
http://statistics.data.gov.uk/id/local-authority/12UE,Huntingdonshire District Council,ER01,Domestic Waste Collection,609,Vehicle Licence,218483,17/10/2017,18/10/2017,CR000200,DENNIS EAGLE LTD,23742-23744, 728.50 
http://statistics.data.gov.uk/id/local-authority/12UE,Huntingdonshire District Council,ER01,Domestic Waste Collection,609,Vehicle Licence,218483,17/10/2017,18/10/2017,CR000200,DENNIS EAGLE LTD,23742-23744, 728.50 
http://statistics.data.gov.uk/id/local-authority/12UE,Huntingdonshire District Council,ER01,Domestic Waste Collection,609,Vehicle Licence,218483,17/10/2017,18/10/2017,CR000200,DENNIS EAGLE LTD,23742-23744, 728.50 
http://statistics.data.gov.uk/id/local-authority/12UE,Huntingdonshire District Council,MU95,Vehicle Maintenance,614,Petrol,49977,26/10/2017,27/10/2017,,,,-490.28 
http://statistics.data.gov.uk/id/local-authority/12UE,Huntingdonshire District Council,MU95,Vehicle Maintenance,614,Petrol,50148,31/10/2017,30/11/2017,,,, 395.54 
http://statistics.data.gov.uk/id/local-authority/12UE,Huntingdonshire District Council,MU95,Vehicle Maintenance,614,Petrol,49992,30/10/2017,30/10/2017,,,, 490.28 
http://statistics.data.gov.uk/id/local-authority/12UE,Huntingdonshire District Council,MU95,Vehicle Maintenance,615,Diesel,49977,26/10/2017,27/10/2017,,,,-668.70 
http://statistics.data.gov.uk/id/local-authority/12UE,Huntingdonshire District Council,MU95,Vehicle Maintenance,615,Diesel,49992,30/10/2017,30/10/2017,,,, 668.70 
http://statistics.data.gov.uk/id/local-authority/12UE,Huntingdonshire District Council,MU95,Vehicle Maintenance,615,Diesel,50148,31/10/2017,30/11/2017,,,, 935.30 
http://statistics.data.gov.uk/id/local-authority/12UE,Huntingdonshire District Council,GM14,Ph & Hc Vehicles,618,Vehicle Inspection,218183,03/10/2017,05/10/2017,CR422066,ADAMS AUTOS,INV-208, 265.00 
http://statistics.data.gov.uk/id/local-authority/12UE,Huntingdonshire District Council,GM14,Ph & Hc Vehicles,618,Vehicle Inspection,218181,03/10/2017,05/10/2017,CR422066,ADAMS AUTOS,INV-200," 2,865.00 "
http://statistics.data.gov.uk/id/local-authority/12UE,Huntingdonshire District Council,LK90,Site & Centre Management,619,Vehicle Maintenance External,218187,04/10/2017,05/10/2017,CR453903,BEN BURGESS & COMPANY,765762, 271.33 
http://statistics.data.gov.uk/id/local-authority/12UE,Huntingdonshire District Council,ER01,Domestic Waste Collection,619,Vehicle Maintenance External,219060,24/10/2017,25/10/2017,CR456001,JOHN HENRY & SONS TA WFL ENTERPRISES LTD,35419, 273.00 
http://statistics.data.gov.uk/id/local-authority/12UE,Huntingdonshire District Council,MU95,Vehicle Maintenance,619,Vehicle Maintenance External,218535,24/10/2017,25/10/2017,CR408287,TOTAL KARE HDWS LTD,SI-097839, 401.67 
http://statistics.data.gov.uk/id/local-authority/12UE,Huntingdonshire District Council,ER01,Domestic Waste Collection,619,Vehicle Maintenance External,218128,24/10/2017,25/10/2017,CR007546,FRANK RATCLIFFE & SON,88061, 499.50 
http://statistics.data.gov.uk/id/local-authority/12UE,Huntingdonshire District Council,ER01,Domestic Waste Collection,619,Vehicle Maintenance External,218997,25/10/2017,25/10/2017,CR030353,D & H SIGN & DISPLAY SERVICES,6691, 543.00 
http://statistics.data.gov.uk/id/local-authority/12UE,Huntingdonshire District Council,ER01,Domestic Waste Collection,619,Vehicle Maintenance External,218997,25/10/2017,25/10/2017,CR030353,D & H SIGN & DISPLAY SERVICES,6691, 543.00 
http://statistics.data.gov.uk/id/local-authority/12UE,Huntingdonshire District Council,ER03,Trade Refuse,619,Vehicle Maintenance External,218963,25/10/2017,25/10/2017,CR423430,D & H SIGN & DISPLAY SERVICE,6688, 543.00 
http://statistics.data.gov.uk/id/local-authority/12UE,Huntingdonshire District Council,ER01,Domestic Waste Collection,619,Vehicle Maintenance External,219169,24/10/2017,25/10/2017,CR402183,TERBERG MATEC UK LTD,96348038, 861.43 
http://statistics.data.gov.uk/id/local-authority/12UE,Huntingdonshire District Council,ER01,Domestic Waste Collection,625,Vehicle Parts & Fittings,219029,17/10/2017,18/10/2017,CR000141,A C COMMERCIALS,277193I, 291.74 
http://statistics.data.gov.uk/id/local-authority/12UE,Huntingdonshire District Council,EQ02,Recycling Collections,625,Vehicle Parts & Fittings,217700,17/10/2017,18/10/2017,CR000200,DENNIS EAGLE LTD,310854, 324.36 
http://statistics.data.gov.uk/id/local-authority/12UE,Huntingdonshire District Council,ES01,Street Cleansing,625,Vehicle Parts & Fittings,218972,17/10/2017,18/10/2017,CR025706,AEBI SCHMIDT,60232089, 367.18 
http://statistics.data.gov.uk/id/local-authority/12UE,Huntingdonshire District Council,ER01,Domestic Waste Collection,625,Vehicle Parts & Fittings,218485,17/10/2017,18/10/2017,CR000200,DENNIS EAGLE LTD,DE11073278, 431.09 
http://statistics.data.gov.uk/id/local-authority/12UE,Huntingdonshire District Council,ES01,Street Cleansing,625,Vehicle Parts & Fittings,215819,25/10/2017,25/10/2017,CR029831,JOHNSTON ENGINEERING LTD,61536425, 464.88 
http://statistics.data.gov.uk/id/local-authority/12UE,Huntingdonshire District Council,ER01,Domestic Waste Collection,625,Vehicle Parts & Fittings,219511,25/10/2017,25/10/2017,CR000200,DENNIS EAGLE LTD,11075886, 516.63 
http://statistics.data.gov.uk/id/local-authority/12UE,Huntingdonshire District Council,EG06,Grounds Maintenance,625,Vehicle Parts & Fittings,214908,01/10/2017,04/12/2017,CR030353,D & H SIGN & DISPLAY SERVICES,, 540.00 
http://statistics.data.gov.uk/id/local-authority/12UE,Huntingdonshire District Council,ER01,Domestic Waste Collection,625,Vehicle Parts & Fittings,218957,25/10/2017,25/10/2017,CR000200,DENNIS EAGLE LTD,DE11075508, 549.28 
http://statistics.data.gov.uk/id/local-authority/12UE,Huntingdonshire District Council,EG06,Grounds Maintenance,625,Vehicle Parts & Fittings,217140,05/10/2017,05/10/2017,CR098282,REESINK TURFCARE UK LTD,PSI1715925, 569.21 
http://statistics.data.gov.uk/id/local-authority/12UE,Huntingdonshire District Council,ES01,Street Cleansing,625,Vehicle Parts & Fittings,218962,17/10/2017,18/10/2017,CR423411,THE BELL BRUSH COMPANY,179673, 584.50 
http://statistics.data.gov.uk/id/local-authority/12UE,Huntingdonshire District Council,EQ02,Recycling Collections,625,Vehicle Parts & Fittings,217862,05/10/2017,05/10/2017,CR405690,RED FORGE LTD,103457, 628.00 
http://statistics.data.gov.uk/id/local-authority/12UE,Huntingdonshire District Council,ES01,Street Cleansing,625,Vehicle Parts & Fittings,218130,24/10/2017,25/10/2017,CR025706,AEBI SCHMIDT,60231689, 681.70 
http://statistics.data.gov.uk/id/local-authority/12UE,Huntingdonshire District Council,ES01,Street Cleansing,625,Vehicle Parts & Fittings,218130,24/10/2017,25/10/2017,CR025706,AEBI SCHMIDT,60231689, 681.70 
http://statistics.data.gov.uk/id/local-authority/12UE,Huntingdonshire District Council,ES01,Street Cleansing,625,Vehicle Parts & Fittings,218960,25/10/2017,25/10/2017,CR029831,JOHNSTON ENGINEERING LTD,61552778, 980.00 
http://statistics.data.gov.uk/id/local-authority/12UE,Huntingdonshire District Council,ES01,Street Cleansing,625,Vehicle Parts & Fittings,219044,17/10/2017,18/10/2017,CR422248,CHASSIS-CAB LTD,80066970," 1,009.94 "
http://statistics.data.gov.uk/id/local-authority/12UE,Huntingdonshire District Council,EQ02,Recycling Collections,625,Vehicle Parts & Fittings,218147,17/10/2017,18/10/2017,CR000200,DENNIS EAGLE LTD,310879," 1,150.47 "
http://statistics.data.gov.uk/id/local-authority/12UE,Huntingdonshire District Council,ER01,Domestic Waste Collection,625,Vehicle Parts & Fittings,218534,24/10/2017,25/10/2017,CR402183,TERBERG MATEC UK LTD,96347456," 1,182.10 "
http://statistics.data.gov.uk/id/local-authority/12UE,Huntingdonshire District Council,ER01,Domestic Waste Collection,625,Vehicle Parts & Fittings,215706,17/10/2017,18/10/2017,CR000200,DENNIS EAGLE LTD,DE11062984," 1,467.45 "
http://statistics.data.gov.uk/id/local-authority/12UE,Huntingdonshire District Council,EQ02,Recycling Collections,625,Vehicle Parts & Fittings,218132,17/10/2017,18/10/2017,CR000200,DENNIS EAGLE LTD,311379," 1,982.49 "
http://statistics.data.gov.uk/id/local-authority/12UE,Huntingdonshire District Council,ER01,Domestic Waste Collection,625,Vehicle Parts & Fittings,219067,25/10/2017,25/10/2017,CR480661,M & N VEHICLE SERVICES,28987," 3,118.73 "
http://statistics.data.gov.uk/id/local-authority/12UE,Huntingdonshire District Council,ER01,Domestic Waste Collection,630,Tyres,218562,24/10/2017,25/10/2017,CR406810,BANDVULC TRUCK TYRES,108128, 255.80 
http://statistics.data.gov.uk/id/local-authority/12UE,Huntingdonshire District Council,ER01,Domestic Waste Collection,630,Tyres,218562,24/10/2017,25/10/2017,CR406810,BANDVULC TRUCK TYRES,108128, 255.80 
http://statistics.data.gov.uk/id/local-authority/12UE,Huntingdonshire District Council,EQ02,Recycling Collections,630,Tyres,218561,12/10/2017,12/10/2017,CR406810,BANDVULC TRUCK TYRES,106899, 259.79 
http://statistics.data.gov.uk/id/local-authority/12UE,Huntingdonshire District Council,EQ02,Recycling Collections,630,Tyres,218562,24/10/2017,25/10/2017,CR406810,BANDVULC TRUCK TYRES,108128, 414.75 
http://statistics.data.gov.uk/id/local-authority/12UE,Huntingdonshire District Council,EQ02,Recycling Collections,630,Tyres,218561,12/10/2017,12/10/2017,CR406810,BANDVULC TRUCK TYRES,106899, 418.36 
http://statistics.data.gov.uk/id/local-authority/12UE,Huntingdonshire District Council,ER01,Domestic Waste Collection,630,Tyres,218561,12/10/2017,12/10/2017,CR406810,BANDVULC TRUCK TYRES,106899, 492.28 
http://statistics.data.gov.uk/id/local-authority/12UE,Huntingdonshire District Council,ER01,Domestic Waste Collection,630,Tyres,218561,12/10/2017,12/10/2017,CR406810,BANDVULC TRUCK TYRES,106899, 510.51 
http://statistics.data.gov.uk/id/local-authority/12UE,Huntingdonshire District Council,EQ02,Recycling Collections,630,Tyres,218562,24/10/2017,25/10/2017,CR406810,BANDVULC TRUCK TYRES,108128, 625.21 
http://statistics.data.gov.uk/id/local-authority/12UE,Huntingdonshire District Council,EQ02,Recycling Collections,630,Tyres,218561,12/10/2017,12/10/2017,CR406810,BANDVULC TRUCK TYRES,106899, 723.43 
http://statistics.data.gov.uk/id/local-authority/12UE,Huntingdonshire District Council,EQ02,Recycling Collections,630,Tyres,218561,12/10/2017,12/10/2017,CR406810,BANDVULC TRUCK TYRES,106899, 910.66 
http://statistics.data.gov.uk/id/local-authority/12UE,Huntingdonshire District Council,HH01,Homelessness,636,Travel Expenses,616412,19/10/2017,19/10/2017,CR155956,STEVES TAXIS & PRIVATE HIRE,9309, 316.90 
http://statistics.data.gov.uk/id/local-authority/12UE,Huntingdonshire District Council,FA01,Corporate Finance (Non Cm),702,Cash Collection,49977,26/10/2017,27/10/2017,,,,"-1,107.30 "
http://statistics.data.gov.uk/id/local-authority/12UE,Huntingdonshire District Council,FA01,Corporate Finance (Non Cm),702,Cash Collection,49992,30/10/2017,30/10/2017,,,," 1,107.30 "
http://statistics.data.gov.uk/id/local-authority/12UE,Huntingdonshire District Council,FA01,Corporate Finance (Non Cm),702,Cash Collection,50148,31/10/2017,30/11/2017,,,," 1,175.01 "
http://statistics.data.gov.uk/id/local-authority/12UE,Huntingdonshire District Council,FD05,N D R  Management,703,Bailiffs,218236,03/10/2017,03/10/2017,CR409114,NEWLYN PLC,4563, 331.56 
http://statistics.data.gov.uk/id/local-authority/12UE,Huntingdonshire District Council,HB85,Benefits Management,703,Bailiffs,218232,03/10/2017,06/10/2017,CR409114,NEWLYN PLC,4562, 788.28 
http://statistics.data.gov.uk/id/local-authority/12UE,Huntingdonshire District Council,HB85,Benefits Management,703,Bailiffs,218463,06/10/2017,06/10/2017,CR409114,NEWLYN PLC,B021017," 1,475.09 "
http://statistics.data.gov.uk/id/local-authority/12UE,Huntingdonshire District Council,CH08,Corporate Finance,704,Bank Charges,49977,26/10/2017,27/10/2017,,,,"-5,396.38 "
http://statistics.data.gov.uk/id/local-authority/12UE,Huntingdonshire District Council,CH08,Corporate Finance,704,Bank Charges,49977,26/10/2017,27/10/2017,,,,-344.50 
http://statistics.data.gov.uk/id/local-authority/12UE,Huntingdonshire District Council,CH08,Corporate Finance,704,Bank Charges,49977,26/10/2017,27/10/2017,,,,-262.31 
http://statistics.data.gov.uk/id/local-authority/12UE,Huntingdonshire District Council,CH08,Corporate Finance,704,Bank Charges,49977,26/10/2017,27/10/2017,,,,-253.42 
http://statistics.data.gov.uk/id/local-authority/12UE,Huntingdonshire District Council,CH08,Corporate Finance,704,Bank Charges,49992,30/10/2017,30/10/2017,,,, 253.42 
http://statistics.data.gov.uk/id/local-authority/12UE,Huntingdonshire District Council,CH08,Corporate Finance,704,Bank Charges,49992,30/10/2017,30/10/2017,,,, 262.31 
http://statistics.data.gov.uk/id/local-authority/12UE,Huntingdonshire District Council,CH08,Corporate Finance,704,Bank Charges,49992,30/10/2017,30/10/2017,,,, 344.50 
http://statistics.data.gov.uk/id/local-authority/12UE,Huntingdonshire District Council,CH08,Corporate Finance,704,Bank Charges,50148,31/10/2017,30/11/2017,,,, 377.50 
http://statistics.data.gov.uk/id/local-authority/12UE,Huntingdonshire District Council,CH08,Corporate Finance,704,Bank Charges,50148,31/10/2017,30/11/2017,,,," 4,499.80 "
http://statistics.data.gov.uk/id/local-authority/12UE,Huntingdonshire District Council,CH08,Corporate Finance,704,Bank Charges,49992,30/10/2017,30/10/2017,,,," 5,396.38 "
http://statistics.data.gov.uk/id/local-authority/12UE,Huntingdonshire District Council,CH08,Corporate Finance,704,Bank Charges,50148,31/10/2017,30/11/2017,,,," 8,551.32 "
http://statistics.data.gov.uk/id/local-authority/12UE,Huntingdonshire District Council,MB01,Pathfinder House,710,Catering,219122,18/10/2017,19/10/2017,CR422866,BROOKES,102070, 860.20 
http://statistics.data.gov.uk/id/local-authority/12UE,Huntingdonshire District Council,QD04,Commercial Investment Strategy,711,Consultants,219147,18/10/2017,02/11/2017,CR424943,HELLIER LANGSTON LIMITED,,"-5,000.00 "
http://statistics.data.gov.uk/id/local-authority/12UE,Huntingdonshire District Council,DA03,Contaminated Land,711,Consultants,217766,10/10/2017,12/10/2017,CR480691,AIR MONITORS LTD,8340, 250.00 
http://statistics.data.gov.uk/id/local-authority/12UE,Huntingdonshire District Council,QA03,Business & Enterprise Support,711,Consultants,218090,06/10/2017,06/10/2017,CR452143,ARCHANT COMMUNITY MEDIA LTD,82768287, 508.23 
http://statistics.data.gov.uk/id/local-authority/12UE,Huntingdonshire District Council,PD02,Dm Application Processing,711,Consultants,219156,18/10/2017,19/10/2017,CR404991,READING AGRICULTURAL CONSULTANTS,7335/17/565/PA, 600.00 
http://statistics.data.gov.uk/id/local-authority/12UE,Huntingdonshire District Council,MH07,Hr & Payroll Services,711,Consultants,218522,09/10/2017,09/10/2017,CR416738,NORTHGATE ARINSO,94544397, 825.00 
http://statistics.data.gov.uk/id/local-authority/12UE,Huntingdonshire District Council,MD22,Ccity Recharge Invoices,711,Consultants,219378,24/10/2017,26/10/2017,CR028925,NORTHGATEPUBLIC SERVICES UK LTD,91397252, 850.00 
http://statistics.data.gov.uk/id/local-authority/12UE,Huntingdonshire District Council,CH42,Transformation - Commercial,711,Consultants,218235,03/10/2017,05/10/2017,CR422814,NORTHAMPTONSHIRE COUNTY COUNCIL,7135729," 1,400.00 "
http://statistics.data.gov.uk/id/local-authority/12UE,Huntingdonshire District Council,CH42,Transformation - Commercial,711,Consultants,217894,04/10/2017,04/10/2017,CR422620,EAST OF ENGLAND LGA,1000050," 1,410.00 "
http://statistics.data.gov.uk/id/local-authority/12UE,Huntingdonshire District Council,MU26,Facilities,711,Consultants,219012,17/10/2017,17/10/2017,CR119758,C G UTILITIES,HDC055," 1,724.35 "
http://statistics.data.gov.uk/id/local-authority/12UE,Huntingdonshire District Council,MD20,Imd Shared Service,711,Consultants,219380,24/10/2017,26/10/2017,CR423491,HORNBILL SERVICE MANAGEMENT LIMITED,INV13490," 1,900.00 "
http://statistics.data.gov.uk/id/local-authority/12UE,Huntingdonshire District Council,MD24,Hdc Recharge Invoices,711,Consultants,218659,11/10/2017,12/10/2017,CR455836,PROJECT SOLUTION  LTD,PSLSI1645," 2,031.25 "
http://statistics.data.gov.uk/id/local-authority/12UE,Huntingdonshire District Council,CH01,Managing Directors Team,711,Consultants,616598,20/10/2017,20/10/2017,CR031937,TROWERS & HAMLINS,2636891," 2,150.57 "
http://statistics.data.gov.uk/id/local-authority/12UE,Huntingdonshire District Council,TC90,Car Parks Operational Mgt,711,Consultants,217885,12/10/2017,12/10/2017,CR422382,AITCHISON RAFFERTY,SAC015028," 2,200.00 "
http://statistics.data.gov.uk/id/local-authority/12UE,Huntingdonshire District Council,HB85,Benefits Management,711,Consultants,616185,12/10/2017,12/10/2017,CR424743,CTA CONSULTANCY,SI-102," 2,500.00 "
http://statistics.data.gov.uk/id/local-authority/12UE,Huntingdonshire District Council,PD03,Dm Appeals,711,Consultants,219155,18/10/2017,19/10/2017,CR424986,MICHELLE BOLGER EXPERT LANDSCAPE CONSULTANCY,59," 4,656.63 "
http://statistics.data.gov.uk/id/local-authority/12UE,Huntingdonshire District Council,Q500,Commercial Investment Property,711,Consultants,219147,18/10/2017,02/11/2017,CR424943,HELLIER LANGSTON LIMITED,," 5,000.00 "
http://statistics.data.gov.uk/id/local-authority/12UE,Huntingdonshire District Council,QD04,Commercial Investment Strategy,711,Consultants,219147,18/10/2017,18/10/2017,CR424943,HELLIER LANGSTON LIMITED,AH/HB/4091," 5,000.00 "
http://statistics.data.gov.uk/id/local-authority/12UE,Huntingdonshire District Council,LD90,Hinchingbrooke Park Management,711,Consultants,219553,25/10/2017,25/10/2017,CR424912,PLANNING SOLUTIONS CONSULTING LTD,673," 6,648.06 "
http://statistics.data.gov.uk/id/local-authority/12UE,Huntingdonshire District Council,CH42,Transformation - Commercial,711,Consultants,217893,04/10/2017,04/10/2017,CR422620,EAST OF ENGLAND LGA,1000147," 7,402.50 "
http://statistics.data.gov.uk/id/local-authority/12UE,Huntingdonshire District Council,CH42,Transformation - Commercial,711,Consultants,219737,27/10/2017,27/10/2017,CR422620,EAST OF ENGLAND LGA,1000222," 8,460.00 "
http://statistics.data.gov.uk/id/local-authority/12UE,Huntingdonshire District Council,PD03,Dm Appeals,711,Consultants,219135,18/10/2017,19/10/2017,CR455436,CORNERSTONE BARRISTERS,136453," 16,270.40 "
http://statistics.data.gov.uk/id/local-authority/12UE,Huntingdonshire District Council,TC90,Car Parks Operational Mgt,711,Consultants,219061,19/10/2017,19/10/2017,CR411142,STEER DAVIES GLEAVE,5621064," 32,750.00 "
http://statistics.data.gov.uk/id/local-authority/12UE,Huntingdonshire District Council,MU04,Env Protection,715,Enforcement - Works In Default,219140,30/10/2017,31/10/2017,CR405771,GOVNET COMMUNICATIONS,127996, 445.00 
http://statistics.data.gov.uk/id/local-authority/12UE,Huntingdonshire District Council,DY01,Burials Under Health Act,717,Funerals And Graves,616887,31/10/2017,31/10/2017,CR094549,DENNIS EASTON FUNERAL SERVICE,522642/60199106, 819.00 
http://statistics.data.gov.uk/id/local-authority/12UE,Huntingdonshire District Council,LB37,Sports Development,720,Instructors/Tutors,218509,11/10/2017,12/10/2017,CR416894,GRAFHAM WATER CENTRE,GW17004," 1,116.00 "
http://statistics.data.gov.uk/id/local-authority/12UE,Huntingdonshire District Council,LB37,Sports Development,720,Instructors/Tutors,219091,18/10/2017,19/10/2017,CR406534,PAXTON LAKES SAILING CLUB,22," 1,200.00 "
http://statistics.data.gov.uk/id/local-authority/12UE,Huntingdonshire District Council,DA03,Contaminated Land,725,Laboratory Services,219340,23/10/2017,26/10/2017,CR424946,ALS LIFE SCIENCES LTD,HL248362," 1,732.20 "
http://statistics.data.gov.uk/id/local-authority/12UE,Huntingdonshire District Council,MU61,Legal,727,Land Registry Fee,49977,26/10/2017,27/10/2017,,,,-343.00 
http://statistics.data.gov.uk/id/local-authority/12UE,Huntingdonshire District Council,MU61,Legal,727,Land Registry Fee,49992,30/10/2017,30/10/2017,,,, 343.00 
http://statistics.data.gov.uk/id/local-authority/12UE,Huntingdonshire District Council,MU61,Legal,727,Land Registry Fee,50148,31/10/2017,30/11/2017,,,, 525.00 
http://statistics.data.gov.uk/id/local-authority/12UE,Huntingdonshire District Council,QD04,Commercial Investment Strategy,729,Legal Fees,217321,01/10/2017,07/12/2017,CR480787,FREETHS  LLP,,-831.66 
http://statistics.data.gov.uk/id/local-authority/12UE,Huntingdonshire District Council,CH20,Corporate Director (Services),729,Legal Fees,219561,26/10/2017,26/10/2017,CR422151,TROWERS AND HAMLINS,2648237, 589.50 
http://statistics.data.gov.uk/id/local-authority/12UE,Huntingdonshire District Council,HB85,Benefits Management,729,Legal Fees,219350,23/10/2017,23/10/2017,CR455302,WILKIN CHAPMAN LLP,687187, 775.00 
http://statistics.data.gov.uk/id/local-authority/12UE,Huntingdonshire District Council,Q500,Commercial Investment Property,729,Legal Fees,217321,01/10/2017,07/12/2017,CR480787,FREETHS  LLP,, 831.66 
http://statistics.data.gov.uk/id/local-authority/12UE,Huntingdonshire District Council,HB85,Benefits Management,729,Legal Fees,615962,03/10/2017,03/10/2017,CR000619,PETERBOROUGH CITY COUNCIL,371481," 1,364.00 "
http://statistics.data.gov.uk/id/local-authority/12UE,Huntingdonshire District Council,GM04,Sex Establishments,729,Legal Fees,219312,23/10/2017,26/10/2017,CR455436,CORNERSTONE BARRISTERS,136936," 1,500.00 "
http://statistics.data.gov.uk/id/local-authority/12UE,Huntingdonshire District Council,LQ10,Indoor Sports,730,Licences,218472,11/10/2017,12/10/2017,CR025826,LES MILLS UK,SIV212922, 255.38 
http://statistics.data.gov.uk/id/local-authority/12UE,Huntingdonshire District Council,TC90,Car Parks Operational Mgt,730,Licences,218229,03/10/2017,05/10/2017,CR031588,BRITISH PARKING ASSOC,49070, 875.00 
http://statistics.data.gov.uk/id/local-authority/12UE,Huntingdonshire District Council,HH01,Homelessness,733,Management Charge,219542,26/10/2017,26/10/2017,CR409301,KING STREET HOUSING SOCIETY,19918," 1,559.90 "
http://statistics.data.gov.uk/id/local-authority/12UE,Huntingdonshire District Council,HF01,Mobile Home Park,733,Management Charge,218608,12/10/2017,12/10/2017,CR401276,LUMINUS HOMES,DIHH/00003063," 5,972.56 "
http://statistics.data.gov.uk/id/local-authority/12UE,Huntingdonshire District Council,CE90,Electoral Registration,733,Management Charge,616885,30/10/2017,30/10/2017,CR479981,ELECTORAL REFORM SERVICES,ERS1703079," 6,421.40 "
http://statistics.data.gov.uk/id/local-authority/12UE,Huntingdonshire District Council,HH01,Homelessness,733,Management Charge,218704,11/10/2017,11/10/2017,CR455893,STONHAM HOME GROUP,1101001629," 35,000.00 "
http://statistics.data.gov.uk/id/local-authority/12UE,Huntingdonshire District Council,LQ21,Burgess Hall,744,Entertainments Inc Cable Tv,219109,18/10/2017,19/10/2017,CR024127,STARLITE ROADSHOW,8362, 300.00 
http://statistics.data.gov.uk/id/local-authority/12UE,Huntingdonshire District Council,LQ21,Burgess Hall,744,Entertainments Inc Cable Tv,219115,18/10/2017,19/10/2017,CR412228,LAYTONDINGS ENTERTAINMENT LTD,44766, 300.00 
http://statistics.data.gov.uk/id/local-authority/12UE,Huntingdonshire District Council,LQ21,Burgess Hall,744,Entertainments Inc Cable Tv,218116,04/10/2017,05/10/2017,CR024127,STARLITE ROADSHOW,8360, 350.00 
http://statistics.data.gov.uk/id/local-authority/12UE,Huntingdonshire District Council,LQ21,Burgess Hall,744,Entertainments Inc Cable Tv,219108,19/10/2017,19/10/2017,CR028041,ROGER WILSON ELECTRONICS,9878, 750.00 
http://statistics.data.gov.uk/id/local-authority/12UE,Huntingdonshire District Council,LQ21,Burgess Hall,744,Entertainments Inc Cable Tv,218325,11/10/2017,12/10/2017,CR423529,OFF THE KERB PRODUCTIONS,56445," 1,396.80 "
http://statistics.data.gov.uk/id/local-authority/12UE,Huntingdonshire District Council,LQ21,Burgess Hall,744,Entertainments Inc Cable Tv,218945,18/10/2017,19/10/2017,CR424600,INDIVIDUAL ENTERTAINMENT LTD,17/0589," 7,074.94 "
http://statistics.data.gov.uk/id/local-authority/12UE,Huntingdonshire District Council,EQ02,Recycling Collections,747,Recycling Collections,219036,17/10/2017,18/10/2017,CR127636,AMEYCESPA (EAST) LTD,AS152570," 11,975.26 "
http://statistics.data.gov.uk/id/local-authority/12UE,Huntingdonshire District Council,EQ02,Recycling Collections,747,Recycling Collections,219038,17/10/2017,18/10/2017,CR127636,AMEYCESPA (EAST) LTD,AS152586," 16,482.50 "
http://statistics.data.gov.uk/id/local-authority/12UE,Huntingdonshire District Council,CG03,Member Allowances & Support,748,Registration Fee,50148,31/10/2017,30/11/2017,,,, 500.00 
http://statistics.data.gov.uk/id/local-authority/12UE,Huntingdonshire District Council,QA03,Business & Enterprise Support,754,Corporate Subscriptions,219117,18/10/2017,18/10/2017,CR422415,GREATER CAMBS & PETERBOROUGH ENT PARTNERSHIP,INV-0001," 7,500.00 "
http://statistics.data.gov.uk/id/local-authority/12UE,Huntingdonshire District Council,MU17,Planning Policy,754,Corporate Subscriptions,219117,18/10/2017,18/10/2017,CR422415,GREATER CAMBS & PETERBOROUGH ENT PARTNERSHIP,INV-0001," 9,587.00 "
http://statistics.data.gov.uk/id/local-authority/12UE,Huntingdonshire District Council,ER03,Trade Refuse,763,Waste Disposal,616382,18/10/2017,18/10/2017,CR006678,CAMBRIDGESHIRE COUNTY COUNCIL,10756194," 5,540.93 "
http://statistics.data.gov.uk/id/local-authority/12UE,Huntingdonshire District Council,ER03,Trade Refuse,763,Waste Disposal,616381,18/10/2017,18/10/2017,CR006678,CAMBRIDGESHIRE COUNTY COUNCIL,10753312," 6,387.56 "
http://statistics.data.gov.uk/id/local-authority/12UE,Huntingdonshire District Council,LQ90,Site & Centre Management,772,Income Transaction Charges,49977,26/10/2017,27/10/2017,,,,-949.10 
http://statistics.data.gov.uk/id/local-authority/12UE,Huntingdonshire District Council,LN90,Site & Centre Management,772,Income Transaction Charges,49977,26/10/2017,27/10/2017,,,,-547.99 
http://statistics.data.gov.uk/id/local-authority/12UE,Huntingdonshire District Council,LN90,Site & Centre Management,772,Income Transaction Charges,50148,31/10/2017,30/11/2017,,,, 307.51 
http://statistics.data.gov.uk/id/local-authority/12UE,Huntingdonshire District Council,LN90,Site & Centre Management,772,Income Transaction Charges,49992,30/10/2017,30/10/2017,,,, 547.99 
http://statistics.data.gov.uk/id/local-authority/12UE,Huntingdonshire District Council,LQ90,Site & Centre Management,772,Income Transaction Charges,49992,30/10/2017,30/10/2017,,,, 949.10 
http://statistics.data.gov.uk/id/local-authority/12UE,Huntingdonshire District Council,LQ90,Site & Centre Management,772,Income Transaction Charges,50148,31/10/2017,30/11/2017,,,," 1,374.73 "
http://statistics.data.gov.uk/id/local-authority/12UE,Huntingdonshire District Council,MU61,Legal,779,Client Contracts,219331,23/10/2017,23/10/2017,CR017896,CAMBRIDGE CITY COUNCIL,198464," 53,265.00 "
http://statistics.data.gov.uk/id/local-authority/12UE,Huntingdonshire District Council,ER01,Domestic Waste Collection,797,Insurance Excess,218246,04/10/2017,04/10/2017,CR423576,GALLAGHER BASSET INTERNATIONAL LTD,HDC003, 354.24 
http://statistics.data.gov.uk/id/local-authority/12UE,Huntingdonshire District Council,H502,Housing Private Sector Grants,798,Shared Service Savings,218319,05/10/2017,05/10/2017,CR030128,B P MORSE,600, 250.00 
http://statistics.data.gov.uk/id/local-authority/12UE,Huntingdonshire District Council,H502,Housing Private Sector Grants,798,Shared Service Savings,218979,19/10/2017,19/10/2017,CR030128,B P MORSE,615, 250.00 
http://statistics.data.gov.uk/id/local-authority/12UE,Huntingdonshire District Council,H502,Housing Private Sector Grants,798,Shared Service Savings,218612,12/10/2017,12/10/2017,CR410900,PRIORY BUILDINGS (ST NEOTS) LTD,6317, 310.00 
http://statistics.data.gov.uk/id/local-authority/12UE,Huntingdonshire District Council,ER01,Domestic Waste Collection,799,Other Services,219468,25/10/2017,25/10/2017,CR423561,ALERE TOXICOLOGY PLC,546730," 1,460.00 "
http://statistics.data.gov.uk/id/local-authority/12UE,Huntingdonshire District Council,KG04,Voluntary Sector Grants,800,Grants (Paid Out),218103,03/10/2017,05/10/2017,CR478566,PORTAKABIN LTD,900792515, 672.54 
http://statistics.data.gov.uk/id/local-authority/12UE,Huntingdonshire District Council,H504,Disabled Facilities Grants,801,Mandatory Grants,218321,05/10/2017,05/10/2017,CR089905,BSG PROPERTY SERVICES LTD,532696, 480.00 
http://statistics.data.gov.uk/id/local-authority/12UE,Huntingdonshire District Council,H504,Disabled Facilities Grants,801,Mandatory Grants,218682,12/10/2017,12/10/2017,CR422300,ASHCO BUILDING & MAINTENANCE SERVICES LTD,A0214328, 504.00 
http://statistics.data.gov.uk/id/local-authority/12UE,Huntingdonshire District Council,H504,Disabled Facilities Grants,801,Mandatory Grants,218501,12/10/2017,12/10/2017,CR480595,M WATSON CONSTRUCTION LTD,20750, 703.40 
http://statistics.data.gov.uk/id/local-authority/12UE,Huntingdonshire District Council,H504,Disabled Facilities Grants,801,Mandatory Grants,218093,05/10/2017,05/10/2017,CR455907,ANGLIA OIL TANKS LTD,970, 714.00 
http://statistics.data.gov.uk/id/local-authority/12UE,Huntingdonshire District Council,H504,Disabled Facilities Grants,801,Mandatory Grants,218973,19/10/2017,19/10/2017,CR410900,PRIORY BUILDINGS (ST NEOTS) LTD,6321, 840.00 
http://statistics.data.gov.uk/id/local-authority/12UE,Huntingdonshire District Council,H504,Disabled Facilities Grants,801,Mandatory Grants,219022,19/10/2017,19/10/2017,CR410900,PRIORY BUILDINGS (ST NEOTS) LTD,6320," 1,532.20 "
http://statistics.data.gov.uk/id/local-authority/12UE,Huntingdonshire District Council,H504,Disabled Facilities Grants,801,Mandatory Grants,219137,19/10/2017,19/10/2017,CR089905,BSG PROPERTY SERVICES LTD,S32695," 1,770.00 "
http://statistics.data.gov.uk/id/local-authority/12UE,Huntingdonshire District Council,H504,Disabled Facilities Grants,801,Mandatory Grants,218998,19/10/2017,19/10/2017,CR030128,B P MORSE,617," 2,240.00 "
http://statistics.data.gov.uk/id/local-authority/12UE,Huntingdonshire District Council,H504,Disabled Facilities Grants,801,Mandatory Grants,219020,19/10/2017,19/10/2017,CR030128,B P MORSE,620," 2,555.00 "
http://statistics.data.gov.uk/id/local-authority/12UE,Huntingdonshire District Council,H504,Disabled Facilities Grants,801,Mandatory Grants,218091,05/10/2017,05/10/2017,CR030128,B P MORSE,608," 2,680.00 "
http://statistics.data.gov.uk/id/local-authority/12UE,Huntingdonshire District Council,H504,Disabled Facilities Grants,801,Mandatory Grants,219141,19/10/2017,19/10/2017,CR422300,ASHCO BUILDING & MAINTENANCE SERVICES LTD,AC0214348," 2,876.59 "
http://statistics.data.gov.uk/id/local-authority/12UE,Huntingdonshire District Council,H504,Disabled Facilities Grants,801,Mandatory Grants,218611,12/10/2017,12/10/2017,CR410900,PRIORY BUILDINGS (ST NEOTS) LTD,6316," 3,163.00 "
http://statistics.data.gov.uk/id/local-authority/12UE,Huntingdonshire District Council,H504,Disabled Facilities Grants,801,Mandatory Grants,219018,19/10/2017,19/10/2017,CR422148,HD PROPERTY SERVICES,SI-84," 3,635.00 "
http://statistics.data.gov.uk/id/local-authority/12UE,Huntingdonshire District Council,H504,Disabled Facilities Grants,801,Mandatory Grants,219023,19/10/2017,19/10/2017,CR410900,PRIORY BUILDINGS (ST NEOTS) LTD,6319," 3,661.00 "
http://statistics.data.gov.uk/id/local-authority/12UE,Huntingdonshire District Council,H504,Disabled Facilities Grants,801,Mandatory Grants,218745,19/10/2017,19/10/2017,CR030128,B P MORSE,618," 3,918.00 "
http://statistics.data.gov.uk/id/local-authority/12UE,Huntingdonshire District Council,H504,Disabled Facilities Grants,801,Mandatory Grants,219021,19/10/2017,19/10/2017,CR410900,PRIORY BUILDINGS (ST NEOTS) LTD,6318," 4,000.00 "
http://statistics.data.gov.uk/id/local-authority/12UE,Huntingdonshire District Council,H504,Disabled Facilities Grants,801,Mandatory Grants,218320,05/10/2017,05/10/2017,CR083280,TOTAL HYGIENE LTD,OP/I129738," 4,005.00 "
http://statistics.data.gov.uk/id/local-authority/12UE,Huntingdonshire District Council,H504,Disabled Facilities Grants,801,Mandatory Grants,218105,05/10/2017,05/10/2017,CR083280,TOTAL HYGIENE LTD,OP/I29468," 4,027.00 "
http://statistics.data.gov.uk/id/local-authority/12UE,Huntingdonshire District Council,H504,Disabled Facilities Grants,801,Mandatory Grants,218681,12/10/2017,12/10/2017,CR030128,B P MORSE,610," 4,198.00 "
http://statistics.data.gov.uk/id/local-authority/12UE,Huntingdonshire District Council,H504,Disabled Facilities Grants,801,Mandatory Grants,219153,19/10/2017,19/10/2017,CR411475,FELGAINS CARE & MOBILITY,116737," 4,640.00 "
http://statistics.data.gov.uk/id/local-authority/12UE,Huntingdonshire District Council,H504,Disabled Facilities Grants,801,Mandatory Grants,218999,19/10/2017,19/10/2017,CR405796,WAYNE BINGHAM,403," 4,755.00 "
http://statistics.data.gov.uk/id/local-authority/12UE,Huntingdonshire District Council,H504,Disabled Facilities Grants,801,Mandatory Grants,219026,19/10/2017,19/10/2017,CR405796,WAYNE BINGHAM,405," 4,875.00 "
http://statistics.data.gov.uk/id/local-authority/12UE,Huntingdonshire District Council,H504,Disabled Facilities Grants,801,Mandatory Grants,219146,19/10/2017,19/10/2017,CR423458,GASWISE,64237," 5,128.00 "
http://statistics.data.gov.uk/id/local-authority/12UE,Huntingdonshire District Council,H504,Disabled Facilities Grants,801,Mandatory Grants,218976,19/10/2017,19/10/2017,CR422300,ASHCO BUILDING & MAINTENANCE SERVICES LTD,AC0214312," 6,030.31 "
http://statistics.data.gov.uk/id/local-authority/12UE,Huntingdonshire District Council,H504,Disabled Facilities Grants,801,Mandatory Grants,219033,19/10/2017,19/10/2017,CR413316,MR &MRS K PAGE,2078," 6,444.60 "
http://statistics.data.gov.uk/id/local-authority/12UE,Huntingdonshire District Council,H504,Disabled Facilities Grants,801,Mandatory Grants,218233,05/10/2017,05/10/2017,CR030128,B P MORSE,612," 6,650.00 "
http://statistics.data.gov.uk/id/local-authority/12UE,Huntingdonshire District Council,H504,Disabled Facilities Grants,801,Mandatory Grants,219035,19/10/2017,19/10/2017,CR413316,MR &MRS K PAGE,2088," 7,599.00 "
http://statistics.data.gov.uk/id/local-authority/12UE,Huntingdonshire District Council,H504,Disabled Facilities Grants,801,Mandatory Grants,218270,05/10/2017,05/10/2017,CR424887,PERSONAL DATA REDACTED,PERSONAL DATA REDACTED," 8,400.00 "
http://statistics.data.gov.uk/id/local-authority/12UE,Huntingdonshire District Council,H504,Disabled Facilities Grants,801,Mandatory Grants,218092,05/10/2017,05/10/2017,CR424786,C3S PROJECTS LIMITED,5092," 9,990.28 "
http://statistics.data.gov.uk/id/local-authority/12UE,Huntingdonshire District Council,H504,Disabled Facilities Grants,801,Mandatory Grants,216872,05/10/2017,05/10/2017,CR405796,WAYNE BINGHAM,401," 15,613.51 "
http://statistics.data.gov.uk/id/local-authority/12UE,Huntingdonshire District Council,H504,Disabled Facilities Grants,801,Mandatory Grants,219025,19/10/2017,19/10/2017,CR405796,WAYNE BINGHAM,404," 17,280.00 "
http://statistics.data.gov.uk/id/local-authority/12UE,Huntingdonshire District Council,H504,Disabled Facilities Grants,801,Mandatory Grants,218880,19/10/2017,19/10/2017,CR422300,ASHCO BUILDING & MAINTENANCE SERVICES LTD,AC0214310," 20,815.35 "
http://statistics.data.gov.uk/id/local-authority/12UE,Huntingdonshire District Council,H504,Disabled Facilities Grants,801,Mandatory Grants,218322,05/10/2017,05/10/2017,CR478185,SQUIRES & SON LTD,INV 000132," 28,056.00 "
http://statistics.data.gov.uk/id/local-authority/12UE,Huntingdonshire District Council,TP01,Concessionary Fares,810,Contribution (Paid Out),218242,04/10/2017,04/10/2017,CR455657,HACT,1026," 2,111.13 "
http://statistics.data.gov.uk/id/local-authority/12UE,Huntingdonshire District Council,TA04,Transportation Grants,810,Contribution (Paid Out),218245,04/10/2017,04/10/2017,CR455657,HACT,1037," 12,500.00 "
http://statistics.data.gov.uk/id/local-authority/12UE,Huntingdonshire District Council,HH01,Homelessness,816,Incentive Payment,219738,30/10/2017,30/10/2017,CR401276,LUMINUS HOMES,PERSONAL DATA REDACTED," 1,500.00 "
http://statistics.data.gov.uk/id/local-authority/12UE,Huntingdonshire District Council,HH01,Homelessness,817,Hostel Revenue Support,219158,19/10/2017,19/10/2017,CR487206,METROPOLITAN HOUSING TRUST LTD,3032002," 40,184.77 "
http://statistics.data.gov.uk/id/local-authority/12UE,Huntingdonshire District Council,HH01,Homelessness,818,Bed & Breakfast Payment,218705,11/10/2017,11/10/2017,CR424138,RENT CONNECT,RC-HDC020A,-675.00 
http://statistics.data.gov.uk/id/local-authority/12UE,Huntingdonshire District Council,HH01,Homelessness,818,Bed & Breakfast Payment,218706,11/10/2017,11/10/2017,CR424138,RENT CONNECT,RC-HDC019A,-540.00 
http://statistics.data.gov.uk/id/local-authority/12UE,Huntingdonshire District Council,HH01,Homelessness,818,Bed & Breakfast Payment,218209,05/10/2017,05/10/2017,CR160753,JAZ YORKS LTD,384/818, 262.50 
http://statistics.data.gov.uk/id/local-authority/12UE,Huntingdonshire District Council,HH01,Homelessness,818,Bed & Breakfast Payment,218210,05/10/2017,05/10/2017,CR160753,JAZ YORKS LTD,384/817, 262.50 
http://statistics.data.gov.uk/id/local-authority/12UE,Huntingdonshire District Council,HH01,Homelessness,818,Bed & Breakfast Payment,218211,05/10/2017,05/10/2017,CR160753,JAZ YORKS LTD,384/815, 262.50 
http://statistics.data.gov.uk/id/local-authority/12UE,Huntingdonshire District Council,HH01,Homelessness,818,Bed & Breakfast Payment,218212,05/10/2017,05/10/2017,CR160753,JAZ YORKS LTD,384/814, 262.50 
http://statistics.data.gov.uk/id/local-authority/12UE,Huntingdonshire District Council,HH01,Homelessness,818,Bed & Breakfast Payment,218203,05/10/2017,05/10/2017,CR160753,JAZ YORKS LTD,384/820, 262.50 
http://statistics.data.gov.uk/id/local-authority/12UE,Huntingdonshire District Council,HH01,Homelessness,818,Bed & Breakfast Payment,218204,05/10/2017,05/10/2017,CR160753,JAZ YORKS LTD,384/819, 262.50 
http://statistics.data.gov.uk/id/local-authority/12UE,Huntingdonshire District Council,HH01,Homelessness,818,Bed & Breakfast Payment,218205,05/10/2017,05/10/2017,CR160753,JAZ YORKS LTD,384/829, 262.50 
http://statistics.data.gov.uk/id/local-authority/12UE,Huntingdonshire District Council,HH01,Homelessness,818,Bed & Breakfast Payment,219013,19/10/2017,19/10/2017,CR160753,JAZ YORKS LTD,384/830, 262.50 
http://statistics.data.gov.uk/id/local-authority/12UE,Huntingdonshire District Council,HH01,Homelessness,818,Bed & Breakfast Payment,219550,26/10/2017,26/10/2017,CR160753,JAZ YORKS LTD,384/834, 262.50 
http://statistics.data.gov.uk/id/local-authority/12UE,Huntingdonshire District Council,HH01,Homelessness,818,Bed & Breakfast Payment,218213,05/10/2017,05/10/2017,CR160753,JAZ YORKS LTD,384/828, 262.50 
http://statistics.data.gov.uk/id/local-authority/12UE,Huntingdonshire District Council,HH01,Homelessness,818,Bed & Breakfast Payment,218214,05/10/2017,05/10/2017,CR160753,JAZ YORKS LTD,384/827, 262.50 
http://statistics.data.gov.uk/id/local-authority/12UE,Huntingdonshire District Council,HH01,Homelessness,818,Bed & Breakfast Payment,218215,05/10/2017,05/10/2017,CR160753,JAZ YORKS LTD,384/826, 262.50 
http://statistics.data.gov.uk/id/local-authority/12UE,Huntingdonshire District Council,HH01,Homelessness,818,Bed & Breakfast Payment,218208,05/10/2017,05/10/2017,CR160753,JAZ YORKS LTD,384/821, 262.50 
http://statistics.data.gov.uk/id/local-authority/12UE,Huntingdonshire District Council,HH01,Homelessness,818,Bed & Breakfast Payment,218206,05/10/2017,05/10/2017,CR160753,JAZ YORKS LTD,384/823, 262.50 
http://statistics.data.gov.uk/id/local-authority/12UE,Huntingdonshire District Council,HH01,Homelessness,818,Bed & Breakfast Payment,219547,26/10/2017,26/10/2017,CR160753,JAZ YORKS LTD,384/838, 262.50 
http://statistics.data.gov.uk/id/local-authority/12UE,Huntingdonshire District Council,HH01,Homelessness,818,Bed & Breakfast Payment,218134,05/10/2017,05/10/2017,CR424138,RENT CONNECT,RC-HDC020, 266.00 
http://statistics.data.gov.uk/id/local-authority/12UE,Huntingdonshire District Council,HH01,Homelessness,818,Bed & Breakfast Payment,615961,04/10/2017,05/10/2017,CR410824,COACH & HORSES,299, 275.00 
http://statistics.data.gov.uk/id/local-authority/12UE,Huntingdonshire District Council,HH01,Homelessness,818,Bed & Breakfast Payment,615961,04/10/2017,05/10/2017,CR410824,COACH & HORSES,299, 280.00 
http://statistics.data.gov.uk/id/local-authority/12UE,Huntingdonshire District Council,HH01,Homelessness,818,Bed & Breakfast Payment,616164,11/10/2017,11/10/2017,CR410824,COACH & HORSES,300, 280.00 
http://statistics.data.gov.uk/id/local-authority/12UE,Huntingdonshire District Council,HH01,Homelessness,818,Bed & Breakfast Payment,616369,19/10/2017,19/10/2017,CR410824,COACH & HORSES,301, 280.00 
http://statistics.data.gov.uk/id/local-authority/12UE,Huntingdonshire District Council,HH01,Homelessness,818,Bed & Breakfast Payment,616617,26/10/2017,26/10/2017,CR410824,COACH & HORSES,302, 280.00 
http://statistics.data.gov.uk/id/local-authority/12UE,Huntingdonshire District Council,HH01,Homelessness,818,Bed & Breakfast Payment,616369,19/10/2017,19/10/2017,CR410824,COACH & HORSES,301, 295.00 
http://statistics.data.gov.uk/id/local-authority/12UE,Huntingdonshire District Council,HH01,Homelessness,818,Bed & Breakfast Payment,616617,26/10/2017,26/10/2017,CR410824,COACH & HORSES,302, 315.00 
http://statistics.data.gov.uk/id/local-authority/12UE,Huntingdonshire District Council,HH01,Homelessness,818,Bed & Breakfast Payment,615961,04/10/2017,05/10/2017,CR410824,COACH & HORSES,299, 315.00 
http://statistics.data.gov.uk/id/local-authority/12UE,Huntingdonshire District Council,HH01,Homelessness,818,Bed & Breakfast Payment,616164,11/10/2017,11/10/2017,CR410824,COACH & HORSES,300, 315.00 
http://statistics.data.gov.uk/id/local-authority/12UE,Huntingdonshire District Council,HH01,Homelessness,818,Bed & Breakfast Payment,616369,19/10/2017,19/10/2017,CR410824,COACH & HORSES,301, 315.00 
http://statistics.data.gov.uk/id/local-authority/12UE,Huntingdonshire District Council,HH01,Homelessness,818,Bed & Breakfast Payment,616617,26/10/2017,26/10/2017,CR410824,COACH & HORSES,302, 315.00 
http://statistics.data.gov.uk/id/local-authority/12UE,Huntingdonshire District Council,HH01,Homelessness,818,Bed & Breakfast Payment,615961,04/10/2017,05/10/2017,CR410824,COACH & HORSES,299, 315.00 
http://statistics.data.gov.uk/id/local-authority/12UE,Huntingdonshire District Council,HH01,Homelessness,818,Bed & Breakfast Payment,616164,11/10/2017,11/10/2017,CR410824,COACH & HORSES,300, 315.00 
http://statistics.data.gov.uk/id/local-authority/12UE,Huntingdonshire District Council,HH01,Homelessness,818,Bed & Breakfast Payment,615961,04/10/2017,05/10/2017,CR410824,COACH & HORSES,299, 315.00 
http://statistics.data.gov.uk/id/local-authority/12UE,Huntingdonshire District Council,HH01,Homelessness,818,Bed & Breakfast Payment,616164,11/10/2017,11/10/2017,CR410824,COACH & HORSES,300, 315.00 
http://statistics.data.gov.uk/id/local-authority/12UE,Huntingdonshire District Council,HH01,Homelessness,818,Bed & Breakfast Payment,616369,19/10/2017,19/10/2017,CR410824,COACH & HORSES,301, 315.00 
http://statistics.data.gov.uk/id/local-authority/12UE,Huntingdonshire District Council,HH01,Homelessness,818,Bed & Breakfast Payment,616617,26/10/2017,26/10/2017,CR410824,COACH & HORSES,302, 315.00 
http://statistics.data.gov.uk/id/local-authority/12UE,Huntingdonshire District Council,HH01,Homelessness,818,Bed & Breakfast Payment,219552,26/10/2017,26/10/2017,CR160753,JAZ YORKS LTD,384/832, 320.84 
http://statistics.data.gov.uk/id/local-authority/12UE,Huntingdonshire District Council,HH01,Homelessness,818,Bed & Breakfast Payment,219546,26/10/2017,26/10/2017,CR453752,THE STATION HOTEL,15/17, 350.00 
http://statistics.data.gov.uk/id/local-authority/12UE,Huntingdonshire District Council,HH01,Homelessness,818,Bed & Breakfast Payment,218106,05/10/2017,05/10/2017,CR423164,UKOS PROJECTS LTD,EC1719, 350.00 
http://statistics.data.gov.uk/id/local-authority/12UE,Huntingdonshire District Council,HH01,Homelessness,818,Bed & Breakfast Payment,218587,11/10/2017,11/10/2017,CR423164,UKOS PROJECTS LTD,EC1720, 350.00 
http://statistics.data.gov.uk/id/local-authority/12UE,Huntingdonshire District Council,HH01,Homelessness,818,Bed & Breakfast Payment,219016,19/10/2017,19/10/2017,CR423164,UKOS PROJECTS LTD,EC1721, 350.00 
http://statistics.data.gov.uk/id/local-authority/12UE,Huntingdonshire District Council,HH01,Homelessness,818,Bed & Breakfast Payment,219544,26/10/2017,26/10/2017,CR423164,UKOS PROJECTS LTD,EC1722, 350.00 
http://statistics.data.gov.uk/id/local-authority/12UE,Huntingdonshire District Council,HH01,Homelessness,818,Bed & Breakfast Payment,218106,05/10/2017,05/10/2017,CR423164,UKOS PROJECTS LTD,EC1719, 350.00 
http://statistics.data.gov.uk/id/local-authority/12UE,Huntingdonshire District Council,HH01,Homelessness,818,Bed & Breakfast Payment,218587,11/10/2017,11/10/2017,CR423164,UKOS PROJECTS LTD,EC1720, 350.00 
http://statistics.data.gov.uk/id/local-authority/12UE,Huntingdonshire District Council,HH01,Homelessness,818,Bed & Breakfast Payment,219016,19/10/2017,19/10/2017,CR423164,UKOS PROJECTS LTD,EC1721, 350.00 
http://statistics.data.gov.uk/id/local-authority/12UE,Huntingdonshire District Council,HH01,Homelessness,818,Bed & Breakfast Payment,219544,26/10/2017,26/10/2017,CR423164,UKOS PROJECTS LTD,EC1722, 350.00 
http://statistics.data.gov.uk/id/local-authority/12UE,Huntingdonshire District Council,HH01,Homelessness,818,Bed & Breakfast Payment,218216,05/10/2017,05/10/2017,CR160753,JAZ YORKS LTD,384/813, 379.17 
http://statistics.data.gov.uk/id/local-authority/12UE,Huntingdonshire District Council,HH01,Homelessness,818,Bed & Breakfast Payment,219015,19/10/2017,19/10/2017,CR160753,JAZ YORKS LTD,384/829, 379.17 
http://statistics.data.gov.uk/id/local-authority/12UE,Huntingdonshire District Council,HH01,Homelessness,818,Bed & Breakfast Payment,219162,19/10/2017,19/10/2017,CR160753,JAZ YORKS LTD,384/816, 379.17 
http://statistics.data.gov.uk/id/local-authority/12UE,Huntingdonshire District Council,HH01,Homelessness,818,Bed & Breakfast Payment,218201,05/10/2017,05/10/2017,CR160753,JAZ YORKS LTD,384/825, 379.17 
http://statistics.data.gov.uk/id/local-authority/12UE,Huntingdonshire District Council,HH01,Homelessness,818,Bed & Breakfast Payment,218202,05/10/2017,05/10/2017,CR160753,JAZ YORKS LTD,384/824, 379.17 
http://statistics.data.gov.uk/id/local-authority/12UE,Huntingdonshire District Council,HH01,Homelessness,818,Bed & Breakfast Payment,219014,19/10/2017,19/10/2017,CR160753,JAZ YORKS LTD,384/831, 379.17 
http://statistics.data.gov.uk/id/local-authority/12UE,Huntingdonshire District Council,HH01,Homelessness,818,Bed & Breakfast Payment,219549,26/10/2017,26/10/2017,CR160753,JAZ YORKS LTD,384/835, 379.17 
http://statistics.data.gov.uk/id/local-authority/12UE,Huntingdonshire District Council,HH01,Homelessness,818,Bed & Breakfast Payment,219551,26/10/2017,26/10/2017,CR160753,JAZ YORKS LTD,384/833, 379.17 
http://statistics.data.gov.uk/id/local-authority/12UE,Huntingdonshire District Council,HH01,Homelessness,818,Bed & Breakfast Payment,616617,26/10/2017,26/10/2017,CR410824,COACH & HORSES,302, 385.00 
http://statistics.data.gov.uk/id/local-authority/12UE,Huntingdonshire District Council,HH01,Homelessness,818,Bed & Breakfast Payment,615961,04/10/2017,05/10/2017,CR410824,COACH & HORSES,299, 385.00 
http://statistics.data.gov.uk/id/local-authority/12UE,Huntingdonshire District Council,HH01,Homelessness,818,Bed & Breakfast Payment,616164,11/10/2017,11/10/2017,CR410824,COACH & HORSES,300, 385.00 
http://statistics.data.gov.uk/id/local-authority/12UE,Huntingdonshire District Council,HH01,Homelessness,818,Bed & Breakfast Payment,616369,19/10/2017,19/10/2017,CR410824,COACH & HORSES,301, 385.00 
http://statistics.data.gov.uk/id/local-authority/12UE,Huntingdonshire District Council,HH01,Homelessness,818,Bed & Breakfast Payment,616617,26/10/2017,26/10/2017,CR410824,COACH & HORSES,302, 385.00 
http://statistics.data.gov.uk/id/local-authority/12UE,Huntingdonshire District Council,HH01,Homelessness,818,Bed & Breakfast Payment,616164,11/10/2017,11/10/2017,CR410824,COACH & HORSES,300, 385.00 
http://statistics.data.gov.uk/id/local-authority/12UE,Huntingdonshire District Council,HH01,Homelessness,818,Bed & Breakfast Payment,616369,19/10/2017,19/10/2017,CR410824,COACH & HORSES,301, 385.00 
http://statistics.data.gov.uk/id/local-authority/12UE,Huntingdonshire District Council,HH01,Homelessness,818,Bed & Breakfast Payment,218134,05/10/2017,05/10/2017,CR424138,RENT CONNECT,RC-HDC020, 390.00 
http://statistics.data.gov.uk/id/local-authority/12UE,Huntingdonshire District Council,HH01,Homelessness,818,Bed & Breakfast Payment,615961,04/10/2017,05/10/2017,CR410824,COACH & HORSES,299, 455.00 
http://statistics.data.gov.uk/id/local-authority/12UE,Huntingdonshire District Council,HH01,Homelessness,818,Bed & Breakfast Payment,616164,11/10/2017,11/10/2017,CR410824,COACH & HORSES,300, 455.00 
http://statistics.data.gov.uk/id/local-authority/12UE,Huntingdonshire District Council,HH01,Homelessness,818,Bed & Breakfast Payment,616369,19/10/2017,19/10/2017,CR410824,COACH & HORSES,301, 455.00 
http://statistics.data.gov.uk/id/local-authority/12UE,Huntingdonshire District Council,HH01,Homelessness,818,Bed & Breakfast Payment,616617,26/10/2017,26/10/2017,CR410824,COACH & HORSES,302, 455.00 
http://statistics.data.gov.uk/id/local-authority/12UE,Huntingdonshire District Council,HH01,Homelessness,818,Bed & Breakfast Payment,218134,05/10/2017,05/10/2017,CR424138,RENT CONNECT,RC-HDC020, 570.00 
http://statistics.data.gov.uk/id/local-authority/12UE,Huntingdonshire District Council,HH01,Homelessness,818,Bed & Breakfast Payment,219159,19/10/2017,19/10/2017,CR424138,RENT CONNECT,RC-HDC021, 608.00 
http://statistics.data.gov.uk/id/local-authority/12UE,Huntingdonshire District Council,HH01,Homelessness,818,Bed & Breakfast Payment,218134,05/10/2017,05/10/2017,CR424138,RENT CONNECT,RC-HDC020, 675.00 
http://statistics.data.gov.uk/id/local-authority/12UE,Huntingdonshire District Council,HH01,Homelessness,818,Bed & Breakfast Payment,218134,05/10/2017,05/10/2017,CR424138,RENT CONNECT,RC-HDC020, 675.00 
http://statistics.data.gov.uk/id/local-authority/12UE,Huntingdonshire District Council,HH01,Homelessness,818,Bed & Breakfast Payment,218134,05/10/2017,05/10/2017,CR424138,RENT CONNECT,RC-HDC020, 675.00 
http://statistics.data.gov.uk/id/local-authority/12UE,Huntingdonshire District Council,HH01,Homelessness,818,Bed & Breakfast Payment,218134,05/10/2017,05/10/2017,CR424138,RENT CONNECT,RC-HDC020, 675.00 
http://statistics.data.gov.uk/id/local-authority/12UE,Huntingdonshire District Council,HH01,Homelessness,818,Bed & Breakfast Payment,218134,05/10/2017,05/10/2017,CR424138,RENT CONNECT,RC-HDC020, 675.00 
http://statistics.data.gov.uk/id/local-authority/12UE,Huntingdonshire District Council,HH01,Homelessness,818,Bed & Breakfast Payment,218134,05/10/2017,05/10/2017,CR424138,RENT CONNECT,RC-HDC020, 675.00 
http://statistics.data.gov.uk/id/local-authority/12UE,Huntingdonshire District Council,HH01,Homelessness,818,Bed & Breakfast Payment,218134,05/10/2017,05/10/2017,CR424138,RENT CONNECT,RC-HDC020, 675.00 
http://statistics.data.gov.uk/id/local-authority/12UE,Huntingdonshire District Council,HH01,Homelessness,818,Bed & Breakfast Payment,218134,05/10/2017,05/10/2017,CR424138,RENT CONNECT,RC-HDC020, 675.00 
http://statistics.data.gov.uk/id/local-authority/12UE,Huntingdonshire District Council,HH01,Homelessness,818,Bed & Breakfast Payment,218134,05/10/2017,05/10/2017,CR424138,RENT CONNECT,RC-HDC020, 675.00 
http://statistics.data.gov.uk/id/local-authority/12UE,Huntingdonshire District Council,HH01,Homelessness,818,Bed & Breakfast Payment,218134,05/10/2017,05/10/2017,CR424138,RENT CONNECT,RC-HDC020, 675.00 
http://statistics.data.gov.uk/id/local-authority/12UE,Huntingdonshire District Council,HH01,Homelessness,818,Bed & Breakfast Payment,218308,05/10/2017,05/10/2017,CR453752,THE STATION HOTEL,13/17, 700.00 
http://statistics.data.gov.uk/id/local-authority/12UE,Huntingdonshire District Council,HH01,Homelessness,818,Bed & Breakfast Payment,218310,05/10/2017,05/10/2017,CR453752,THE STATION HOTEL,Nov-17, 700.00 
http://statistics.data.gov.uk/id/local-authority/12UE,Huntingdonshire District Council,HH01,Homelessness,818,Bed & Breakfast Payment,218307,05/10/2017,05/10/2017,CR453752,THE STATION HOTEL,Dec-17, 700.00 
http://statistics.data.gov.uk/id/local-authority/12UE,Huntingdonshire District Council,HH01,Homelessness,818,Bed & Breakfast Payment,219545,26/10/2017,26/10/2017,CR453752,THE STATION HOTEL,16/2017, 700.00 
http://statistics.data.gov.uk/id/local-authority/12UE,Huntingdonshire District Council,HH01,Homelessness,818,Bed & Breakfast Payment,219159,19/10/2017,19/10/2017,CR424138,RENT CONNECT,RC-HDC021, 720.00 
http://statistics.data.gov.uk/id/local-authority/12UE,Huntingdonshire District Council,HH01,Homelessness,818,Bed & Breakfast Payment,219159,19/10/2017,19/10/2017,CR424138,RENT CONNECT,RC-HDC021, 720.00 
http://statistics.data.gov.uk/id/local-authority/12UE,Huntingdonshire District Council,HH01,Homelessness,818,Bed & Breakfast Payment,219159,19/10/2017,19/10/2017,CR424138,RENT CONNECT,RC-HDC021, 720.00 
http://statistics.data.gov.uk/id/local-authority/12UE,Huntingdonshire District Council,HH01,Homelessness,818,Bed & Breakfast Payment,219159,19/10/2017,19/10/2017,CR424138,RENT CONNECT,RC-HDC021, 720.00 
http://statistics.data.gov.uk/id/local-authority/12UE,Huntingdonshire District Council,HH01,Homelessness,818,Bed & Breakfast Payment,219159,19/10/2017,19/10/2017,CR424138,RENT CONNECT,RC-HDC021, 720.00 
http://statistics.data.gov.uk/id/local-authority/12UE,Huntingdonshire District Council,HH01,Homelessness,818,Bed & Breakfast Payment,219159,19/10/2017,19/10/2017,CR424138,RENT CONNECT,RC-HDC021, 720.00 
http://statistics.data.gov.uk/id/local-authority/12UE,Huntingdonshire District Council,HH01,Homelessness,818,Bed & Breakfast Payment,219159,19/10/2017,19/10/2017,CR424138,RENT CONNECT,RC-HDC021, 720.00 
http://statistics.data.gov.uk/id/local-authority/12UE,Huntingdonshire District Council,HH01,Homelessness,818,Bed & Breakfast Payment,219159,19/10/2017,19/10/2017,CR424138,RENT CONNECT,RC-HDC021, 720.00 
http://statistics.data.gov.uk/id/local-authority/12UE,Huntingdonshire District Council,HH01,Homelessness,818,Bed & Breakfast Payment,219159,19/10/2017,19/10/2017,CR424138,RENT CONNECT,RC-HDC021, 720.00 
http://statistics.data.gov.uk/id/local-authority/12UE,Huntingdonshire District Council,HH01,Homelessness,818,Bed & Breakfast Payment,218134,05/10/2017,05/10/2017,CR424138,RENT CONNECT,RC-HDC020, 825.00 
http://statistics.data.gov.uk/id/local-authority/12UE,Huntingdonshire District Council,HH01,Homelessness,818,Bed & Breakfast Payment,218134,05/10/2017,05/10/2017,CR424138,RENT CONNECT,RC-HDC020, 825.00 
http://statistics.data.gov.uk/id/local-authority/12UE,Huntingdonshire District Council,HH01,Homelessness,818,Bed & Breakfast Payment,218134,05/10/2017,05/10/2017,CR424138,RENT CONNECT,RC-HDC020, 825.00 
http://statistics.data.gov.uk/id/local-authority/12UE,Huntingdonshire District Council,HH01,Homelessness,818,Bed & Breakfast Payment,218134,05/10/2017,05/10/2017,CR424138,RENT CONNECT,RC-HDC020, 825.00 
http://statistics.data.gov.uk/id/local-authority/12UE,Huntingdonshire District Council,HH01,Homelessness,818,Bed & Breakfast Payment,219159,19/10/2017,19/10/2017,CR424138,RENT CONNECT,RC-HDC021, 880.00 
http://statistics.data.gov.uk/id/local-authority/12UE,Huntingdonshire District Council,HH01,Homelessness,818,Bed & Breakfast Payment,219159,19/10/2017,19/10/2017,CR424138,RENT CONNECT,RC-HDC021, 880.00 
http://statistics.data.gov.uk/id/local-authority/12UE,Huntingdonshire District Council,HH01,Homelessness,818,Bed & Breakfast Payment,219159,19/10/2017,19/10/2017,CR424138,RENT CONNECT,RC-HDC021, 880.00 
http://statistics.data.gov.uk/id/local-authority/12UE,Huntingdonshire District Council,HH01,Homelessness,818,Bed & Breakfast Payment,219159,19/10/2017,19/10/2017,CR424138,RENT CONNECT,RC-HDC021, 880.00 
http://statistics.data.gov.uk/id/local-authority/12UE,Huntingdonshire District Council,HH01,Homelessness,818,Bed & Breakfast Payment,218134,05/10/2017,05/10/2017,CR424138,RENT CONNECT,RC-HDC020, 900.00 
http://statistics.data.gov.uk/id/local-authority/12UE,Huntingdonshire District Council,HH01,Homelessness,818,Bed & Breakfast Payment,218134,05/10/2017,05/10/2017,CR424138,RENT CONNECT,RC-HDC020, 900.00 
http://statistics.data.gov.uk/id/local-authority/12UE,Huntingdonshire District Council,HH01,Homelessness,818,Bed & Breakfast Payment,219159,19/10/2017,19/10/2017,CR424138,RENT CONNECT,RC-HDC021, 960.00 
http://statistics.data.gov.uk/id/local-authority/12UE,Huntingdonshire District Council,HH01,Homelessness,818,Bed & Breakfast Payment,219159,19/10/2017,19/10/2017,CR424138,RENT CONNECT,RC-HDC021, 960.00 
http://statistics.data.gov.uk/id/local-authority/12UE,Huntingdonshire District Council,HH01,Homelessness,818,Bed & Breakfast Payment,219159,19/10/2017,19/10/2017,CR424138,RENT CONNECT,RC-HDC021," 1,040.00 "
http://statistics.data.gov.uk/id/local-authority/12UE,Huntingdonshire District Council,HH01,Homelessness,818,Bed & Breakfast Payment,219159,19/10/2017,19/10/2017,CR424138,RENT CONNECT,RC-HDC021," 1,705.00 "
http://statistics.data.gov.uk/id/local-authority/12UE,Huntingdonshire District Council,GP24,P C Precept Ellington,860,Precepts,615128,02/10/2017,02/10/2017,CR002456,ELLINGTON PARISH COUNCIL,2017/18," 9,000.00 "
http://statistics.data.gov.uk/id/local-authority/12UE,Huntingdonshire District Council,GA12,Nndr Tariff/Topup To/From Govt,861,Levies,49977,26/10/2017,27/10/2017,,,,"-1,383,903.00 "
http://statistics.data.gov.uk/id/local-authority/12UE,Huntingdonshire District Council,GA12,Nndr Tariff/Topup To/From Govt,861,Levies,50148,31/10/2017,30/11/2017,,,," 1,383,902.00 "
http://statistics.data.gov.uk/id/local-authority/12UE,Huntingdonshire District Council,GA12,Nndr Tariff/Topup To/From Govt,861,Levies,49992,30/10/2017,30/10/2017,,,," 1,383,903.00 "
http://statistics.data.gov.uk/id/local-authority/12UE,Huntingdonshire District Council,ZP02,Operations Diesel Stock,980,Stock Purchases,217837,05/10/2017,05/10/2017,CR455975,CERTAS ENERGY T/A PACE FUELCARE,8506686," 28,476.00 "
http://statistics.data.gov.uk/id/local-authority/12UE,Huntingdonshire District Council,ZP02,Operations Diesel Stock,980,Stock Purchases,218275,12/10/2017,12/10/2017,CR455975,CERTAS ENERGY T/A PACE FUELCARE,8580578," 28,476.00 "
http://statistics.data.gov.uk/id/local-authority/12UE,Huntingdonshire District Council,ZP02,Operations Diesel Stock,980,Stock Purchases,218996,25/10/2017,25/10/2017,CR455975,CERTAS ENERGY T/A PACE FUELCARE,8663263," 28,608.95 "
http://statistics.data.gov.uk/id/local-authority/12UE,Huntingdonshire District Council,CH08,Corporate Finance,A04,Costs Recovered,49992,30/10/2017,30/10/2017,,,,-562.46 
http://statistics.data.gov.uk/id/local-authority/12UE,Huntingdonshire District Council,CH08,Corporate Finance,A04,Costs Recovered,49977,26/10/2017,27/10/2017,,,, 562.46 
http://statistics.data.gov.uk/id/local-authority/12UE,Huntingdonshire District Council,LQ21,Burgess Hall,A06,Commission,218261,04/10/2017,05/10/2017,CR423410,STAGE ACTS ENTERTAINMENT LTD,AEODD1729,-692.00 
http://statistics.data.gov.uk/id/local-authority/12UE,Huntingdonshire District Council,PD02,Dm Application Processing,A10,Application Fee,616385,18/10/2017,19/10/2017,CR424967,PERSONAL DATA REDACTED,APP WITHDRAWN," 1,925.00 "
http://statistics.data.gov.uk/id/local-authority/12UE,Huntingdonshire District Council,PB02,B Regs Applications,A10,Application Fee,219330,23/10/2017,23/10/2017,CR017896,CAMBRIDGE CITY COUNCIL,198447," 105,334.18 "
http://statistics.data.gov.uk/id/local-authority/12UE,Huntingdonshire District Council,PB02,B Regs Applications,A11,Inspection Fee,219330,23/10/2017,23/10/2017,CR017896,CAMBRIDGE CITY COUNCIL,198447," 38,074.52 "
http://statistics.data.gov.uk/id/local-authority/12UE,Huntingdonshire District Council,LQ21,Burgess Hall,A21,Room Hire,218261,04/10/2017,05/10/2017,CR423410,STAGE ACTS ENTERTAINMENT LTD,AEODD1729," 5,116.67 "
http://statistics.data.gov.uk/id/local-authority/12UE,Huntingdonshire District Council,PB02,B Regs Applications,A31,Sales - Publications,219330,23/10/2017,23/10/2017,CR017896,CAMBRIDGE CITY COUNCIL,198447, 321.00 
http://statistics.data.gov.uk/id/local-authority/12UE,Huntingdonshire District Council,PB02,B Regs Applications,A66,Applications Partnership Fees,219330,23/10/2017,23/10/2017,CR017896,CAMBRIDGE CITY COUNCIL,198447," 1,870.00 "
http://statistics.data.gov.uk/id/local-authority/12UE,Huntingdonshire District Council,GA02,Government Grant Support,B53,R S G,49992,30/10/2017,30/10/2017,,,,"-94,548.00 "
http://statistics.data.gov.uk/id/local-authority/12UE,Huntingdonshire District Council,GA02,Government Grant Support,B53,R S G,50148,31/10/2017,30/11/2017,,,,"-94,548.00 "
http://statistics.data.gov.uk/id/local-authority/12UE,Huntingdonshire District Council,GA02,Government Grant Support,B53,R S G,49977,26/10/2017,27/10/2017,,,," 94,548.00 "
